Workbook

Sheet Contents
F2: =Workbook.Title -> Break-even distance estimation cost model
A4: Information
A6: Title | B6: Break-even distance estimation cost model
A7: Objective | B7: Estimating the 'break-even distance' for the 2019 BCMR Consultation
A8: Status | B8: Approved for release | C8: Signed off by CK September 2018, final checks 18 Oct by NF
C9: Published 2 November 2018
A11: Contents
A13: Sheet | B13: Description
A14: Contents | B14: This contents sheet
A15: Style Guidelines | B15: A guide to the styles used in this workbook
A16: Terms and Conditions | B16: The terms and conditions on which Ofcom is making available the model
A17: Analysis-> | B17: Indicates that the orange-coloured sheets on the right handside include the different parts of our analysis
A18: 1.Scenarios | B18: A description of the scenarios considered in this workbook
A19: 2.Cost per scenario | B19: A list of the costs considered in each scenario
A20: 3.Assumptions | B20: The numeric assumptions that feed into the profit calculation and the break-even distance estimation
A21: 4.Profit calcs | B21: The calculation of the costs, revenues, and profits that inform the break-even distance estimation
A22: 5.Break-even distance est | B22: The estimation of the break-even distance for each product and payback period across the different scenarios
A23: Inputs-> | B23: Indicates that the blue-coloured sheets on the right handside include the different cost and price inputs we used for our analysis
A24: ECC | B24: BT's Excess Construction Charges
A25: PIA - Duct products | B25: Openreach's Physical Infrastructure Access prices for Duct Products
A26: PIA - Ancillary activities | B26: Openreach's Physical Infrastructure Access prices for Ancilliary Activities
A27: PIA - Ancillary rentals | B27: Openreach's Physical Infrastructure Access prices for Ancilliary Rentals
A28: EAD costs | B28: Ofcom's adjustment of Openreach's unit Fully Allocated Cost for cost component CO485 (Ethernet electronics) for Ethernet services (100Mbit/s, 1Gbit/s, and 10Gbit/s)
A29: EAD prices | B29: Openreach's prices for Ethernet services

Sheet Style Guidelines
H2: Style Guidelines
A5: Styles
B8: Input | C8: 100 | E8: An input to the model that it is expected the user will change (change at will)
B10: Output | C10: 100 | E10: A key result from this part of the model (in particular one that will be used elsewhere in the model)
B12: Confidential | E12: Confidential information that has been redacted
B14: Advanced user styles
B16: Source | C16: Source | E16: A source
B18: Named range | C18: Name | E18: An Excel Name applying to one or more adjacent cells (use Insert Name Create to actually create the Excel Names)
B20: H1 | C20: Title | E20: Heading level 1
B22: H2 | C22: Title | E22: Heading level 2

Sheet Terms and Conditions
A1: The disclosure of this sheet is only permitted to those nominated individuals and individuals occupying the roles and functional areas (and their relevant external advisers, sub-contractors and agents) listed in Annex 2 of the Undertakings given by BT to Ofcom pursuant to the Enterprise Act 2002.
A2: Terms and conditions
A4: The terms and conditions on which Ofcom is making available the model are set out below.
A6: All right, title and interest in the provided model (the ‘Model’) constructed in Excel to estimate the 'break-even distance' for this BCMR Consultation Consultation (dated November 2018) are owned by Ofcom. Such title and interest is protected by United Kingdom intellectual property laws and international treaty provisions. While you may freely use the Model to understand the calculations used to estimate our 'break-even distance', it is not to be modified in any way or used for commercial gain or otherwise without the prior written permission of Ofcom.
A8: No representation or warranty is given as to the accuracy, completeness or correctness of the provided Model and it is provided 'as is'. It is provided without any representation or endorsement made and without warranty of any kind, whether express or implied, including but not limited to the implied warranties of satisfactory quality, fitness for a particular purpose, non-infringement, compatibility, security and accuracy.
A10: Ofcom does not accept any responsibility for any loss, disruption or damage to your data or your computer system which may occur whilst using the Model or material derived from the Model. Ofcom does not warrant that the functions contained in the Model will be uninterrupted or error free. Also, Ofcom does not warrant that defects will be corrected, or that the Model provided is free of viruses.
A12: In no event will Ofcom be liable for any loss or damage including, without limitation, indirect or consequential loss or damage, or any loss or damages whatsoever arising from use or loss of use of, data or profits arising out of or in connection with the use or otherwise of the provided Model. By using this Model, you agree to the above.
A14: These terms and conditions shall be covered by and construed in accordance with the laws of England and Wales. Any dispute arising under these terms and conditions shall be subject to the exclusive jurisdiction of the Courts of England and Wales.

Sheet Analysis->
B3: This sheet left blank intentionally

Sheet 1.Scenarios
A1: 1) Definition of scenarios
B2: Criteria | D2: Scenario 1 | E2: Scenario 2a | F2: Scenario 2b | G2: Scenario 3
D3: Fibre connected | E3: Duct connected with tubing | F3: Duct connected without tubing | G3: Network extension requiring new duct
C4: (i) Existing infrastructure | D4: The incremental cost to connect a new customer site when the provider has a fibre connection in place. | E4: The incremental cost to connect a new customer site when the provider has fibre tubing in place, but not fibre. | F4: The incremental cost to connect a new customer site when the provider has duct in place, but not fibre tubing nor fibre. | G4: The incremental cost to connect a new customer site when the provider has no duct in place.
C5: (ii) Incremental costs | D5: There are virtually zero incremental costs. | E5: The main incremental cost is to blow fibre down the fibre tubing. | F5: The main incremental cost is blown fibre tubing and blown fibre. | G5: The main incremental cost includes the cost of digging to install a new duct, blown fibre tubing, and blown fibre.

Sheet 2.Cost per scenario
A1: 2) Costs per scenario
B2: a) Passive costs
D3: Scenario 1 | E3: Scenario 2a | F3: Scenario 2b | G3: Scenario 3 | H3: Frequency | I3: Operative date | J3: Charge £ Exc VAT
C4: Survey | D4: No | E4: Yes | F4: Yes | G4: Yes | H4: One-off per survey | I4: =ECC!B25 -> 01/04/2018 | J4: =ECC!D25 -> 244.53 | K4: ownnet_oneoff_survey
C5: Blown fibre tubing | D5: No | E5: No | F5: Yes | G5: Yes | H5: One-off per metre | I5: =ECC!B121 -> 01/04/2018 | J5: =ECC!E121 -> 3.83 | K5: ownnet_permetre_blownfibretube
C6: Blown fibre | D6: No | E6: Yes | F6: Yes | G6: Yes | H6: One-off per metre | I6: =ECC!B113 -> 01/04/2018 | J6: =ECC!E113 -> 1.74 | K6: ownnet_permetre_blownfibre
C7: Duct under a footway | D7: No | E7: No | F7: No | G7: Yes | H7: One-off per metre | I7: =ECC!B144 -> 01/04/2018 | J7: =ECC!E144 -> 63.25 | K7: ownnet_permetre_ductfootway
C8: Duct under a carriage way | D8: No | E8: No | F8: No | G8: Yes | H8: One-off per metre | I8: =ECC!B151 -> 01/04/2018 | J8: =ECC!E151 -> 116.07 | K8: ownnet_permetre_ductcarriageway
C9: New footway box | D9: No | E9: No | F9: No | G9: Yes | H9: One-off per footway box | I9: =ECC!B58 -> 01/04/2018 | J9: =ECC!D58 -> 855.23 | K9: ownnet_oneoff_footwaybox
C10: Break through external wall(s) at the customer premise | D10: No | E10: No | F10: No | G10: Yes | H10: One-off per break | I10: =ECC!B32 -> 01/04/2018 | J10: =ECC!D32 -> 220.83 | K10: ownnet_oneoff_breakwall
C11: Ancilliary activity - Blockage clearance (initial) - per blockage | D11: No | E11: No | F11: Yes | G11: No | H11: One-off per blockage | I11: ='PIA - Ancillary activities'!C59 -> 01/10/2017 | J11: ='PIA - Ancillary activities'!E59 -> 536.52 | K11: pia_perblockage_clearblock
B13: b) Active costs
D14: Scenario 1 | E14: Scenario 2a | F14: Scenario 2b | G14: Scenario 3 | H14: Frequency | J14: Charge £ Exc VAT
C15: EAD electronics equipment and installation for 100M EAD LA | D15: Yes | E15: Yes | F15: Yes | G15: Yes | H15: Annual rental per circuit | J15: ='EAD costs'!B7 -> 305.982 | K15: act_hundredmb_int_nonwecla
C16: EAD electronics equipment and installation for 1G EAD LA | D16: Yes | E16: Yes | F16: Yes | G16: Yes | H16: Annual rental per circuit | J16: ='EAD costs'!C7 -> 284.622 | K16: act_onegb_int_nonwecla
C17: EAD electronics equipment and installation for 10G EAD | D17: Yes | E17: Yes | F17: Yes | G17: Yes | H17: Annual rental per circuit | J17: =IF(assumption_act_tengb_low_or_high="low",assumption_act_tengb_low,assumption_act_tengb_high) -> 795.4464 | K17: act_tengb_int_rouk

Sheet 3.Assumptions
A1: 3. Assumptions
B2: a) Passive costs assumptions
C3: Survey | D3: 1 | F3: assumption_survey
C4: New footway box | D4: 100 | F4: assumption_footwaybox
C5: Break through external wall(s) at the customer premise | D5: 1 | F5: assumption_breakwall
C6: Ancilliary activity - Blockage clearance (initial) - per blockage | D6: low | E6: 1.5 | F6: assumption_blockage_low, conservative, in line with range published in 2018 WLA Market Review
E7: 2 | F7: assumption_blockage_high, conservative, in line with range published in 2018 WLA Market Review
C8: The proportion of the duct that runs under a footway (only when a new duct is needed) | D8: 0.9 | F8: assumption_proportion_duct_footway
C9: The proportion of the duct that runs under a carriage way (only when a new duct is needed) | D9: 0.1 | F9: assumption_proportion_duct_carriage_way
C10: Route distance in metres | D10: 230.6867428 | F10: assumption_route_distance
C11: Length of Lead-in duct in metres | D11: 25 | F11: assumption_leadinduct
C12: Number of entries per joint box | D12: 2 | F12: assumption_jointboxentry
B14: b) Active costs assumptions
C15: EAD electronics equipment and installation for 100M EAD LA | D15: 1 | F15: assumption_equipment
C16: EAD electronics equipment and installation for 1G EAD LA
C17: EAD electronics equipment and installation for 10G EAD
C18: EAD electronics equipment and installation for 10G EAD low or high | D18: low | E18: ='EAD costs'!D7 -> 795.4464 | F18: assumption_act_tengb_low
E19: ='EAD costs'!E7 -> 1193.1696 | F19: assumption_act_tengb_high
C20: Payback period (in years) | D20: 7 | F20: assumption_payback_period
C21: Asset life (in years) | D21: 5 | F21: assumption_asset_life
B23: c) Other assumptions
C24: Route distance to radial distance conversion factor | D24: 1.4 | F24: assumption_route_to_radial_distance
C25: Annual discount rate | D25: 0.09 | F25: assumption_discount_rate

Sheet 4.Profit calcs
A1: 4) Profit calculations
B2: a) Passive costs
C3: Passive costs (one-offs) | D3: Type of cost | E3: Scenario 1 | F3: Scenario 2a | G3: Scenario 2b | H3: Scenario 3
C4: Blown fibre tubing | D4: CAPEX | E4: 0 | F4: =IF(INDEX('2.Cost per scenario'!$E$4:$G$11,MATCH($C4,'2.Cost per scenario'!$C$4:$C$11,0),MATCH(F$3,'2.Cost per scenario'!$E$3:$G$3,0))="Yes",(assumption_route_distance*ownnet_permetre_blownfibretube),0) -> 0 | G4: =IF(INDEX('2.Cost per scenario'!$E$4:$G$11,MATCH($C4,'2.Cost per scenario'!$C$4:$C$11,0),MATCH(G$3,'2.Cost per scenario'!$E$3:$G$3,0))="Yes",(assumption_route_distance*ownnet_permetre_blownfibretube),0) -> 883.530225 | H4: =IF(INDEX('2.Cost per scenario'!$E$4:$G$11,MATCH($C4,'2.Cost per scenario'!$C$4:$C$11,0),MATCH(H$3,'2.Cost per scenario'!$E$3:$G$3,0))="Yes",(assumption_route_distance*ownnet_permetre_blownfibretube),0) -> 883.530225
C5: Blown fibre | D5: CAPEX | E5: 0 | F5: =IF(INDEX('2.Cost per scenario'!$E$4:$G$11,MATCH($C5,'2.Cost per scenario'!$C$4:$C$11,0),MATCH(F$3,'2.Cost per scenario'!$E$3:$G$3,0))="Yes",(assumption_route_distance*ownnet_permetre_blownfibre),0) -> 401.3949325 | G5: =IF(INDEX('2.Cost per scenario'!$E$4:$G$11,MATCH($C5,'2.Cost per scenario'!$C$4:$C$11,0),MATCH(G$3,'2.Cost per scenario'!$E$3:$G$3,0))="Yes",(assumption_route_distance*ownnet_permetre_blownfibre),0) -> 401.3949325 | H5: =IF(INDEX('2.Cost per scenario'!$E$4:$G$11,MATCH($C5,'2.Cost per scenario'!$C$4:$C$11,0),MATCH(H$3,'2.Cost per scenario'!$E$3:$G$3,0))="Yes",(assumption_route_distance*ownnet_permetre_blownfibre),0) -> 401.3949325
C6: Duct under a footway | D6: CAPEX | E6: 0 | F6: =IF(INDEX('2.Cost per scenario'!$E$4:$G$11,MATCH($C6,'2.Cost per scenario'!$C$4:$C$11,0),MATCH(F$3,'2.Cost per scenario'!$E$3:$G$3,0))="Yes",(assumption_route_distance*ownnet_permetre_ductfootway*assumption_proportion_duct_footway),0) -> 0 | G6: =IF(INDEX('2.Cost per scenario'!$E$4:$G$11,MATCH($C6,'2.Cost per scenario'!$C$4:$C$11,0),MATCH(G$3,'2.Cost per scenario'!$E$3:$G$3,0))="Yes",(assumption_route_distance*ownnet_permetre_ductfootway*assumption_proportion_duct_footway),0) -> 0 | H6: =IF(INDEX('2.Cost per scenario'!$E$4:$G$11,MATCH($C6,'2.Cost per scenario'!$C$4:$C$11,0),MATCH(H$3,'2.Cost per scenario'!$E$3:$G$3,0))="Yes",(assumption_route_distance*ownnet_permetre_ductfootway*assumption_proportion_duct_footway),0) -> 13131.84284
C7: Duct under a carriage way | D7: CAPEX | E7: 0 | F7: =IF(INDEX('2.Cost per scenario'!$E$4:$G$11,MATCH($C7,'2.Cost per scenario'!$C$4:$C$11,0),MATCH(F$3,'2.Cost per scenario'!$E$3:$G$3,0))="Yes",(assumption_route_distance*ownnet_permetre_ductcarriageway*assumption_proportion_duct_carriage_way),0) -> 0 | G7: =IF(INDEX('2.Cost per scenario'!$E$4:$G$11,MATCH($C7,'2.Cost per scenario'!$C$4:$C$11,0),MATCH(G$3,'2.Cost per scenario'!$E$3:$G$3,0))="Yes",(assumption_route_distance*ownnet_permetre_ductcarriageway*assumption_proportion_duct_carriage_way),0) -> 0 | H7: =IF(INDEX('2.Cost per scenario'!$E$4:$G$11,MATCH($C7,'2.Cost per scenario'!$C$4:$C$11,0),MATCH(H$3,'2.Cost per scenario'!$E$3:$G$3,0))="Yes",(assumption_route_distance*ownnet_permetre_ductcarriageway*assumption_proportion_duct_carriage_way),0) -> 2677.581024
C8: New footway box | D8: CAPEX | E8: 0 | F8: =IF(INDEX('2.Cost per scenario'!$E$4:$G$11,MATCH($C8,'2.Cost per scenario'!$C$4:$C$11,0),MATCH(F$3,'2.Cost per scenario'!$E$3:$G$3,0))="Yes",(ROUNDDOWN(assumption_route_distance/assumption_footwaybox,0)*ownnet_oneoff_footwaybox+ownnet_oneoff_footwaybox),0) -> 0 | G8: =IF(INDEX('2.Cost per scenario'!$E$4:$G$11,MATCH($C8,'2.Cost per scenario'!$C$4:$C$11,0),MATCH(G$3,'2.Cost per scenario'!$E$3:$G$3,0))="Yes",(ROUNDDOWN(assumption_route_distance/assumption_footwaybox,0)*ownnet_oneoff_footwaybox+ownnet_oneoff_footwaybox),0) -> 0 | H8: =IF(INDEX('2.Cost per scenario'!$E$4:$G$11,MATCH($C8,'2.Cost per scenario'!$C$4:$C$11,0),MATCH(H$3,'2.Cost per scenario'!$E$3:$G$3,0))="Yes",(ROUNDDOWN(assumption_route_distance/assumption_footwaybox,0)*ownnet_oneoff_footwaybox+ownnet_oneoff_footwaybox),0) -> 2565.69
C9: Survey | D9: OPEX | E9: 0 | F9: =IF(INDEX('2.Cost per scenario'!$E$4:$G$11,MATCH($C9,'2.Cost per scenario'!$C$4:$C$11,0),MATCH(F$3,'2.Cost per scenario'!$E$3:$G$3,0))="Yes",assumption_survey*ownnet_oneoff_survey,0) -> 244.53 | G9: =IF(INDEX('2.Cost per scenario'!$E$4:$G$11,MATCH($C9,'2.Cost per scenario'!$C$4:$C$11,0),MATCH(G$3,'2.Cost per scenario'!$E$3:$G$3,0))="Yes",assumption_survey*ownnet_oneoff_survey,0) -> 244.53 | H9: =IF(INDEX('2.Cost per scenario'!$E$4:$G$11,MATCH($C9,'2.Cost per scenario'!$C$4:$C$11,0),MATCH(H$3,'2.Cost per scenario'!$E$3:$G$3,0))="Yes",assumption_survey*ownnet_oneoff_survey,0) -> 244.53
C10: Break through external wall(s) at the customer premise | D10: OPEX | E10: 0 | F10: =IF(INDEX('2.Cost per scenario'!$E$4:$G$11,MATCH($C10,'2.Cost per scenario'!$C$4:$C$11,0),MATCH(F$3,'2.Cost per scenario'!$E$3:$G$3,0))="Yes",assumption_breakwall*ownnet_oneoff_breakwall,0) -> 0 | G10: =IF(INDEX('2.Cost per scenario'!$E$4:$G$11,MATCH($C10,'2.Cost per scenario'!$C$4:$C$11,0),MATCH(G$3,'2.Cost per scenario'!$E$3:$G$3,0))="Yes",assumption_breakwall*ownnet_oneoff_breakwall,0) -> 0 | H10: =IF(INDEX('2.Cost per scenario'!$E$4:$G$11,MATCH($C10,'2.Cost per scenario'!$C$4:$C$11,0),MATCH(H$3,'2.Cost per scenario'!$E$3:$G$3,0))="Yes",assumption_breakwall*ownnet_oneoff_breakwall,0) -> 220.83
C11: Ancilliary activity - Blockage clearance (initial) - per blockage | D11: OPEX | E11: 0 | F11: =IF(INDEX('2.Cost per scenario'!$E$4:$G$11,MATCH($C11,'2.Cost per scenario'!$C$4:$C$11,0),MATCH(F$3,'2.Cost per scenario'!$E$3:$G$3,0))="Yes",(IF(assumption_blockage_low_or_high="low",assumption_blockage_lo,assumption_blockage_high)*assumption_route_distance/1000*pia_perblockage_clearblock),0) -> 0 | G11: =IF(INDEX('2.Cost per scenario'!$E$4:$G$11,MATCH($C11,'2.Cost per scenario'!$C$4:$C$11,0),MATCH(G$3,'2.Cost per scenario'!$E$3:$G$3,0))="Yes",(IF(assumption_blockage_low_or_high="low",assumption_blockage_lo,assumption_blockage_high)*assumption_route_distance/1000*pia_perblockage_clearblock),0) -> 185.6520769 | H11: =IF(INDEX('2.Cost per scenario'!$E$4:$G$11,MATCH($C11,'2.Cost per scenario'!$C$4:$C$11,0),MATCH(H$3,'2.Cost per scenario'!$E$3:$G$3,0))="Yes",(IF(assumption_blockage_low_or_high="low",assumption_blockage_lo,assumption_blockage_high)*assumption_route_distance/1000*pia_perblockage_clearblock),0) -> 0
C12: Total CAPEX | D12: CAPEX | E12: 0 | F12: =SUMIFS(F$4:F$11,$D$4:$D$11,$D12) -> 401.3949325 | G12: =SUMIFS(G$4:G$11,$D$4:$D$11,$D12) -> 1284.925158 | H12: 19660.03902 | I12: scenX_passive_capex_cost
C13: Total OPEX | D13: OPEX | E13: 0 | F13: =SUMIFS(F$4:F$11,$D$4:$D$11,$D13) -> 244.53 | G13: 430.1820769 | H13: 465.36 | I13: scenX_passive_opex_cost
C14: Total | D14: CAPEX + OPEX | E14: 0 | F14: =F12+F13 -> 645.9249325 | G14: =G12+G13 -> 1715.107234 | H14: =H12+H13 -> 20125.39902 | I14: scenX_passive_total_cost
B17: b) Active costs
C18: Active costs (one-offs) | D18: Type of cost | E18: Scenario 1 | F18: Scenario 2a | G18: Scenario 2b | H18: Scenario 3
C19: EAD electronics equipment and installation for 100M EAD LA | D19: CAPEX | E19: 0 | F19: =IF(INDEX('2.Cost per scenario'!$E$15:$G$17,MATCH($C19,'2.Cost per scenario'!$C$15:$C$17,0),MATCH(F$18,'2.Cost per scenario'!$E$14:$G$14,0))="Yes",assumption_equipment*act_hundredmb_int_nonwecla*assumption_asset_life) -> 1529.91 | G19: =IF(INDEX('2.Cost per scenario'!$E$15:$G$17,MATCH($C19,'2.Cost per scenario'!$C$15:$C$17,0),MATCH(G$18,'2.Cost per scenario'!$E$14:$G$14,0))="Yes",assumption_equipment*act_hundredmb_int_nonwecla*assumption_asset_life) -> 1529.91 | H19: =IF(INDEX('2.Cost per scenario'!$E$15:$G$17,MATCH($C19,'2.Cost per scenario'!$C$15:$C$17,0),MATCH(H$18,'2.Cost per scenario'!$E$14:$G$14,0))="Yes",assumption_equipment*act_hundredmb_int_nonwecla*assumption_asset_life) -> 1529.91 | I19: eadla_100mb_equipment
C20: EAD electronics equipment and installation for 1G EAD LA | D20: CAPEX | E20: 0 | F20: =IF(INDEX('2.Cost per scenario'!$E$15:$G$17,MATCH($C20,'2.Cost per scenario'!$C$15:$C$17,0),MATCH(F$18,'2.Cost per scenario'!$E$14:$G$14,0))="Yes",assumption_equipment*act_onegb_int_nonwecla*assumption_asset_life) -> 1423.11 | G20: =IF(INDEX('2.Cost per scenario'!$E$15:$G$17,MATCH($C20,'2.Cost per scenario'!$C$15:$C$17,0),MATCH(G$18,'2.Cost per scenario'!$E$14:$G$14,0))="Yes",assumption_equipment*act_onegb_int_nonwecla*assumption_asset_life) -> 1423.11 | H20: =IF(INDEX('2.Cost per scenario'!$E$15:$G$17,MATCH($C20,'2.Cost per scenario'!$C$15:$C$17,0),MATCH(H$18,'2.Cost per scenario'!$E$14:$G$14,0))="Yes",assumption_equipment*act_onegb_int_nonwecla*assumption_asset_life) -> 1423.11 | I20: eadla_1000mb_equipment
C21: EAD electronics equipment and installation for 10G EAD | D21: CAPEX | E21: 0 | F21: =IF(INDEX('2.Cost per scenario'!$E$15:$G$17,MATCH($C21,'2.Cost per scenario'!$C$15:$C$17,0),MATCH(F$18,'2.Cost per scenario'!$E$14:$G$14,0))="Yes",assumption_equipment*act_tengb_int_rouk*assumption_asset_life) -> 3977.232 | G21: =IF(INDEX('2.Cost per scenario'!$E$15:$G$17,MATCH($C21,'2.Cost per scenario'!$C$15:$C$17,0),MATCH(G$18,'2.Cost per scenario'!$E$14:$G$14,0))="Yes",assumption_equipment*act_tengb_int_rouk*assumption_asset_life) -> 3977.232 | H21: =IF(INDEX('2.Cost per scenario'!$E$15:$G$17,MATCH($C21,'2.Cost per scenario'!$C$15:$C$17,0),MATCH(H$18,'2.Cost per scenario'!$E$14:$G$14,0))="Yes",assumption_equipment*act_tengb_int_rouk*assumption_asset_life) -> 3977.232 | I21: eadla_10000mb_equipment
B23: Note that the passive and active costs we have considered in our analysis do not include a return on capital employed explicitly. This is because our discounted cash flow (DCF) analysis captures this return implicitly through the application of a discount rate (i.e. WACC).
B26: c) Total costs = a + b
C27: Circuit | D27: Type of cost | E27: Scenario 1 | F27: Scenario 2a | G27: Scenario 2b | H27: Scenario 3
C28: EAD LA 100Mbit/s | D28: CAPEX + OPEX | E28: =scen1_passive_total_cost+eadla_100mb_equipment -> 1529.91 | F28: =scen2a_passive_total_cost+eadla_100mb_equipment -> 2175.834933 | G28: =scen2b_passive_total_cost+eadla_100mb_equipment -> 3245.017234 | H28: =scen3_passive_total_cost+eadla_100mb_equipment -> 21655.30902
C29: EAD LA 1Gbit/s | D29: CAPEX + OPEX | E29: =scen1_passive_total_cost+eadla_1000mb_equipment -> 1423.11 | F29: =scen2a_passive_total_cost+eadla_1000mb_equipment -> 2069.034933 | G29: =scen2b_passive_total_cost+eadla_1000mb_equipment -> 3138.217234 | H29: =scen3_passive_total_cost+eadla_1000mb_equipment -> 21548.50902
C30: EAD LA 10Gbit/s | D30: CAPEX + OPEX | E30: =scen1_passive_total_cost+eadla_10000mb_equipment -> 3977.232 | F30: =scen2a_passive_total_cost+eadla_10000mb_equipment -> 4623.156933 | G30: =scen2b_passive_total_cost+eadla_10000mb_equipment -> 5692.339234 | H30: =scen3_passive_total_cost+eadla_10000mb_equipment -> 24102.63102
B33: d) Revenues
C34: Circuit | D34: Connection (one-off)
C35: ='EAD prices'!A338 -> EAD Local Access 100 | D35: ='EAD prices'!E338 -> 1875
C36: ='EAD prices'!A348 -> EAD Local Access 1000 | D36: ='EAD prices'!E348 -> 1875
C37: ='EAD prices'!A357 -> EAD Local Access 1000 (60 month minimum period) | D37: ='EAD prices'!E357 -> 1875
C38: ='EAD prices'!A363 -> EAD Local Access 1000 (84 month minimum period) | D38: ='EAD prices'!E363 -> 2940
C39: ='EAD prices'!A366 -> EAD Local Access 10000 | D39: ='EAD prices'!E366 -> 5590
C40: ='EAD prices'!A369 -> EAD Local Access 10000 (60 month minimum period) | D40: ='EAD prices'!E369 -> 4090
E42: Year
C43: Circuit | D43: Rental NPV | E43: 1 | F43: 2 | G43: 3 | H43: 4 | I43: 5 | J43: 6 | K43: 7 | L43: 8 | M43: 9 | N43: 10
C44: =C35 -> EAD Local Access 100 | D44: =SUM(E44:N44) -> 7537.652143 | E44: =IF(assumption_payback_period>=E$43,'EAD prices'!$F$338/POWER(1+assumption_discount_rate,E$43-$E$43),0) -> 1374 | F44: =IF(assumption_payback_period>=F$43,'EAD prices'!$F$338/POWER(1+assumption_discount_rate,F$43-$E$43),0) -> 1260.550459 | G44: =IF(assumption_payback_period>=G$43,'EAD prices'!$F$338/POWER(1+assumption_discount_rate,G$43-$E$43),0) -> 1156.468311 | H44: =IF(assumption_payback_period>=H$43,'EAD prices'!$F$338/POWER(1+assumption_discount_rate,H$43-$E$43),0) -> 1060.980102 | I44: =IF(assumption_payback_period>=I$43,'EAD prices'!$F$338/POWER(1+assumption_discount_rate,I$43-$E$43),0) -> 973.37624 | J44: =IF(assumption_payback_period>=J$43,'EAD prices'!$F$338/POWER(1+assumption_discount_rate,J$43-$E$43),0) -> 893.0057248 | K44: =IF(assumption_payback_period>=K$43,'EAD prices'!$F$338/POWER(1+assumption_discount_rate,K$43-$E$43),0) -> 819.2713071 | L44: =IF(assumption_payback_period>=L$43,'EAD prices'!$F$338/POWER(1+assumption_discount_rate,L$43-$E$43),0) -> 0 | M44: =IF(assumption_payback_period>=M$43,'EAD prices'!$F$338/POWER(1+assumption_discount_rate,M$43-$E$43),0) -> 0 | N44: =IF(assumption_payback_period>=N$43,'EAD prices'!$F$338/POWER(1+assumption_discount_rate,N$43-$E$43),0) -> 0
C45: =C36 -> EAD Local Access 1000 | D45: 10697.54125 | E45: =IF(assumption_payback_period>=E$43,'EAD prices'!$F$348/POWER(1+assumption_discount_rate,E$43-$E$43),0) -> 1950 | F45: =IF(assumption_payback_period>=F$43,'EAD prices'!$F$348/POWER(1+assumption_discount_rate,F$43-$E$43),0) -> 1788.990826 | G45: =IF(assumption_payback_period>=G$43,'EAD prices'!$F$348/POWER(1+assumption_discount_rate,G$43-$E$43),0) -> 1641.275987 | H45: =IF(assumption_payback_period>=H$43,'EAD prices'!$F$348/POWER(1+assumption_discount_rate,H$43-$E$43),0) -> 1505.757786 | I45: =IF(assumption_payback_period>=I$43,'EAD prices'!$F$348/POWER(1+assumption_discount_rate,I$43-$E$43),0) -> 1381.429162 | J45: =IF(assumption_payback_period>=J$43,'EAD prices'!$F$348/POWER(1+assumption_discount_rate,J$43-$E$43),0) -> 1267.366203 | K45: =IF(assumption_payback_period>=K$43,'EAD prices'!$F$348/POWER(1+assumption_discount_rate,K$43-$E$43),0) -> 1162.721287 | L45: =IF(assumption_payback_period>=L$43,'EAD prices'!$F$348/POWER(1+assumption_discount_rate,L$43-$E$43),0) -> 0 | M45: =IF(assumption_payback_period>=M$43,'EAD prices'!$F$348/POWER(1+assumption_discount_rate,M$43-$E$43),0) -> 0 | N45: =IF(assumption_payback_period>=N$43,'EAD prices'!$F$348/POWER(1+assumption_discount_rate,N$43-$E$43),0) -> 0
C46: EAD Local Access 1000 (60 month minimum period) | D46: 10434.21716 | E46: =IF(assumption_payback_period>=E$43,'EAD prices'!$F$357/POWER(1+assumption_discount_rate,E$43-$E$43),0) -> 1902 | F46: =IF(assumption_payback_period>=F$43,'EAD prices'!$F$357/POWER(1+assumption_discount_rate,F$43-$E$43),0) -> 1744.954128 | G46: =IF(assumption_payback_period>=G$43,'EAD prices'!$F$357/POWER(1+assumption_discount_rate,G$43-$E$43),0) -> 1600.875347 | H46: =IF(assumption_payback_period>=H$43,'EAD prices'!$F$357/POWER(1+assumption_discount_rate,H$43-$E$43),0) -> 1468.692979 | I46: =IF(assumption_payback_period>=I$43,'EAD prices'!$F$357/POWER(1+assumption_discount_rate,I$43-$E$43),0) -> 1347.424751 | J46: =IF(assumption_payback_period>=J$43,'EAD prices'!$F$357/POWER(1+assumption_discount_rate,J$43-$E$43),0) -> 1236.169497 | K46: =IF(assumption_payback_period>=K$43,'EAD prices'!$F$357/POWER(1+assumption_discount_rate,K$43-$E$43),0) -> 1134.100456 | L46: =IF(assumption_payback_period>=L$43,'EAD prices'!$F$357/POWER(1+assumption_discount_rate,L$43-$E$43),0) -> 0 | M46: =IF(assumption_payback_period>=M$43,'EAD prices'!$F$357/POWER(1+assumption_discount_rate,M$43-$E$43),0) -> 0 | N46: =IF(assumption_payback_period>=N$43,'EAD prices'!$F$357/POWER(1+assumption_discount_rate,N$43-$E$43),0) -> 0
C47: EAD Local Access 1000 (84 month minimum period) | D47: 10697.54125 | E47: =IF(assumption_payback_period>=E$43,'EAD prices'!$F$363/POWER(1+assumption_discount_rate,E$43-$E$43),0) -> 1950 | F47: =IF(assumption_payback_period>=F$43,'EAD prices'!$F$363/POWER(1+assumption_discount_rate,F$43-$E$43),0) -> 1788.990826 | G47: =IF(assumption_payback_period>=G$43,'EAD prices'!$F$363/POWER(1+assumption_discount_rate,G$43-$E$43),0) -> 1641.275987 | H47: =IF(assumption_payback_period>=H$43,'EAD prices'!$F$363/POWER(1+assumption_discount_rate,H$43-$E$43),0) -> 1505.757786 | I47: =IF(assumption_payback_period>=I$43,'EAD prices'!$F$363/POWER(1+assumption_discount_rate,I$43-$E$43),0) -> 1381.429162 | J47: =IF(assumption_payback_period>=J$43,'EAD prices'!$F$363/POWER(1+assumption_discount_rate,J$43-$E$43),0) -> 1267.366203 | K47: =IF(assumption_payback_period>=K$43,'EAD prices'!$F$363/POWER(1+assumption_discount_rate,K$43-$E$43),0) -> 1162.721287 | L47: =IF(assumption_payback_period>=L$43,'EAD prices'!$F$363/POWER(1+assumption_discount_rate,L$43-$E$43),0) -> 0 | M47: =IF(assumption_payback_period>=M$43,'EAD prices'!$F$363/POWER(1+assumption_discount_rate,M$43-$E$43),0) -> 0 | N47: =IF(assumption_payback_period>=N$43,'EAD prices'!$F$363/POWER(1+assumption_discount_rate,N$43-$E$43),0) -> 0
C48: EAD Local Access 10000 | D48: 22744.61848 | E48: =IF(assumption_payback_period>=E$43,'EAD prices'!$F$366/POWER(1+assumption_discount_rate,E$43-$E$43),0) -> 4146 | F48: =IF(assumption_payback_period>=F$43,'EAD prices'!$F$366/POWER(1+assumption_discount_rate,F$43-$E$43),0) -> 3803.669725 | G48: =IF(assumption_payback_period>=G$43,'EAD prices'!$F$366/POWER(1+assumption_discount_rate,G$43-$E$43),0) -> 3489.605252 | H48: =IF(assumption_payback_period>=H$43,'EAD prices'!$F$366/POWER(1+assumption_discount_rate,H$43-$E$43),0) -> 3201.472708 | I48: =IF(assumption_payback_period>=I$43,'EAD prices'!$F$366/POWER(1+assumption_discount_rate,I$43-$E$43),0) -> 2937.130925 | J48: =IF(assumption_payback_period>=J$43,'EAD prices'!$F$366/POWER(1+assumption_discount_rate,J$43-$E$43),0) -> 2694.615528 | K48: =IF(assumption_payback_period>=K$43,'EAD prices'!$F$366/POWER(1+assumption_discount_rate,K$43-$E$43),0) -> 2472.124337 | L48: =IF(assumption_payback_period>=L$43,'EAD prices'!$F$366/POWER(1+assumption_discount_rate,L$43-$E$43),0) -> 0 | M48: =IF(assumption_payback_period>=M$43,'EAD prices'!$F$366/POWER(1+assumption_discount_rate,M$43-$E$43),0) -> 0 | N48: =IF(assumption_payback_period>=N$43,'EAD prices'!$F$366/POWER(1+assumption_discount_rate,N$43-$E$43),0) -> 0
C49: EAD Local Access 10000 (60 month minimum period) | D49: 20012.63102 | E49: =IF(assumption_payback_period>=E$43,'EAD prices'!$F$369/POWER(1+assumption_discount_rate,E$43-$E$43),0) -> 3648 | F49: =IF(assumption_payback_period>=F$43,'EAD prices'!$F$369/POWER(1+assumption_discount_rate,F$43-$E$43),0) -> 3346.788991 | G49: =IF(assumption_payback_period>=G$43,'EAD prices'!$F$369/POWER(1+assumption_discount_rate,G$43-$E$43),0) -> 3070.448615 | H49: =IF(assumption_payback_period>=H$43,'EAD prices'!$F$369/POWER(1+assumption_discount_rate,H$43-$E$43),0) -> 2816.925335 | I49: =IF(assumption_payback_period>=I$43,'EAD prices'!$F$369/POWER(1+assumption_discount_rate,I$43-$E$43),0) -> 2584.33517 | J49: =IF(assumption_payback_period>=J$43,'EAD prices'!$F$369/POWER(1+assumption_discount_rate,J$43-$E$43),0) -> 2370.949697 | K49: =IF(assumption_payback_period>=K$43,'EAD prices'!$F$369/POWER(1+assumption_discount_rate,K$43-$E$43),0) -> 2175.183208 | L49: =IF(assumption_payback_period>=L$43,'EAD prices'!$F$369/POWER(1+assumption_discount_rate,L$43-$E$43),0) -> 0 | M49: =IF(assumption_payback_period>=M$43,'EAD prices'!$F$369/POWER(1+assumption_discount_rate,M$43-$E$43),0) -> 0 | N49: =IF(assumption_payback_period>=N$43,'EAD prices'!$F$369/POWER(1+assumption_discount_rate,N$43-$E$43),0) -> 0
C52: Circuit | D52: Total NPV
C53: =C35 -> EAD Local Access 100 | D53: =D35+D44 -> 9412.652143 | E53: eadla_100mb_tco
C54: =C36 -> EAD Local Access 1000 | D54: =D36+D45 -> 12572.54125 | E54: eadla_1000mb_tco
C55: EAD Local Access 1000 (60 month minimum period) | D55: =D37+D46 -> 12309.21716 | E55: eadla_1000mb_tco_5year
C56: EAD Local Access 1000 (84 month minimum period) | D56: =D38+D47 -> 13637.54125 | E56: eadla_1000mb_tco_7year
C57: EAD Local Access 10000 | D57: =D39+D48 -> 28334.61848 | E57: eadla_10000mb_tco
C58: EAD Local Access 10000 (60 month minimum period) | D58: =D40+D49 -> 24102.63102 | E58: eadla_10000mb_tco_5year
B61: e) Profit = d - c
C62: Circuit | D62: Scenario 1 | E62: Scenario 2a | F62: Scenario 2b | G62: Scenario 3
C63: EAD LA 100Mbit/s | D63: =eadla_100mb_tco-scen1_passive_total_cost-eadla_100mb_equipment -> 7882.742143 | E63: =eadla_100mb_tco-scen2a_passive_total_cost-eadla_100mb_equipment -> 7236.81721 | F63: =eadla_100mb_tco-scen2b_passive_total_cost-eadla_100mb_equipment -> 6167.634909 | G63: =eadla_100mb_tco-scen3_passive_total_cost-eadla_100mb_equipment -> -12242.65687
C64: EAD LA 1Gbit/s | D64: =IF(assumption_payback_period<5,eadla_1000mb_tco,IF(assumption_payback_period>5, eadla_1000mb_tco_7year,eadla_1000mb_tco_5year))-scen1_passive_total_cost-eadla_1000mb_equipment -> 12214.43125 | E64: =IF(assumption_payback_period<5,eadla_1000mb_tco,IF(assumption_payback_period>5, eadla_1000mb_tco_7year,eadla_1000mb_tco_5year))-scen2a_passive_total_cost-eadla_1000mb_equipment -> 11568.50632 | F64: =IF(assumption_payback_period<5,eadla_1000mb_tco,IF(assumption_payback_period>5, eadla_1000mb_tco_7year,eadla_1000mb_tco_5year))-scen2b_passive_total_cost-eadla_1000mb_equipment -> 10499.32402 | G64: =IF(assumption_payback_period<5,eadla_1000mb_tco,IF(assumption_payback_period>5, eadla_1000mb_tco_7year,eadla_1000mb_tco_5year))-scen3_passive_total_cost-eadla_1000mb_equipment -> -7910.967766
C65: EAD LA 10Gbit/s | D65: =IF(assumption_payback_period<5,eadla_10000mb_tco,eadla_10000mb_tco_5year)-scen1_passive_total_cost-eadla_10000mb_equipment -> 20125.39902 | E65: =IF(assumption_payback_period<5,eadla_10000mb_tco,eadla_10000mb_tco_5year)-scen2a_passive_total_cost-eadla_10000mb_equipment -> 19479.47408 | F65: =IF(assumption_payback_period<5,eadla_10000mb_tco,eadla_10000mb_tco_5year)-scen2b_passive_total_cost-eadla_10000mb_equipment -> 18410.29178 | G65: =IF(assumption_payback_period<5,eadla_10000mb_tco,eadla_10000mb_tco_5year)-scen3_passive_total_cost-eadla_10000mb_equipment -> 0
E66: eadla_Xmb_profit_scen_two_a | F66: eadla_Xmb_profit_scen_two_b | G66: eadla_Xmb_profit_scen_three

Sheet 5.Break-even distance est
A1: 5. Break-even distance estimation
B2: a) Click the button below and the tables will populate automatically; or
E9: Approximate break-even route distance | K9: Approximate break-even radial distance
C10: Circuit | D10: Payback period (years) | E10: ='4.Profit calcs'!D62 -> Scenario 1 | F10: ='4.Profit calcs'!E62 -> Scenario 2a | G10: ='4.Profit calcs'!F62 -> Scenario 2b | H10: ='4.Profit calcs'!G62 -> Scenario 3 | K10: ='4.Profit calcs'!D62 -> Scenario 1 | L10: ='4.Profit calcs'!E62 -> Scenario 2a | M10: ='4.Profit calcs'!F62 -> Scenario 2b | N10: ='4.Profit calcs'!G62 -> Scenario 3
C11: EAD LA 100Mbit/s | D11: 3 | E11: Distance is not a factor | F11: 2236.539523 | G11: 610.4647956 | H11: 37.99517921 | K11: Distance is not a factor | L11: =F11/assumption_route_to_radial_distance -> 1597.52823 | M11: =G11/assumption_route_to_radial_distance -> 436.0462825 | N11: =H11/assumption_route_to_radial_distance -> 27.13941372
C12: EAD LA 100Mbit/s | D12: 5 | E12: Distance is not a factor | F12: 3405.709834 | G12: 929.5905288 | H12: 65.44863986 | K12: Distance is not a factor | L12: 2432.649881 | M12: 663.9932348 | N12: 46.74902847
C13: EAD LA 100Mbit/s | D13: 7 | E13: Distance is not a factor | F13: 4389.777094 | G13: 1198.192274 | H13: 88.55566844 | K13: Distance is not a factor | L13: 3135.555067 | M13: 855.8516241 | N13: 63.25404889
C14: EAD LA 1Gbit/s | D14: 3 | E14: Distance is not a factor | F14: 3211.279777 | G14: 876.520729 | H14: 60.883199 | K14: Distance is not a factor | L14: 2293.77127 | M14: 626.086235 | N14: 43.48799929
C15: EAD LA 1Gbit/s | D15: 5 | E15: Distance is not a factor | F15: 4753.624831 | G15: 1297.504731 | H15: 97.09923087 | K15: Distance is not a factor | L15: 3395.446308 | M15: 926.7890932 | N15: 69.35659348
C16: EAD LA 1Gbit/s | D16: 7 | E16: Distance is not a factor | F16: 6879.253593 | G16: 1877.696368 | H16: 135.4701796 | K16: Distance is not a factor | L16: 4913.752566 | M16: 1341.211691 | N16: 96.76441402
C17: EAD LA 10Gbit/s | D17: 3 | E17: Distance is not a factor | F17: 7360.639642 | G17: 2009.090977 | H17: 146.7736765 | K17: Distance is not a factor | L17: 5257.599744 | M17: 1435.064983 | N17: 104.8383404
C18: EAD LA 10Gbit/s | D18: 5 | E18: Distance is not a factor | F18: 8813.066731 | G18: 2405.531816 | H18: 180.8783314 | K18: Distance is not a factor | L18: 6295.047665 | M18: 1718.237012 | N18: 129.1988081
C19: EAD LA 10Gbit/s | D19: 7 | E19: Distance is not a factor | F19: 11425.78679 | G19: 3118.675314 | H19: 230.6867428 | K19: Distance is not a factor | L19: 8161.27628 | M19: 2227.625224 | N19: 164.7762449
F20: eadla_Xmb_X_year_scen_two_a | G20: eadla_Xmb_X_year_scen_two_b | H20: eadla_Xmb_X_year_scen_three
B26: b) Follow these steps
C27: Step 1. Select the profit of the product and scenario of interest on tab "4.Profit calcs"
C28: Step 2. Select "Data" tab > "What-If Analysis" > "Goal seek"
C29: Step 3. Type in 0 (zero) in "To value"
C30: Step 4. Type in "assumption_route_distance" in "By changing cell"
C31: Step 5. The break-even distances will show up below:
C32: Break-even route distance | D32: =assumption_route_distance -> 230.6867428 | E32: breakeven_route_distance
C33: Break-even radial distance | D33: =assumption_route_distance/assumption_route_to_radial_distance -> 164.7762449 | E33: breakeven_radial_distance

Sheet Inputs->
B3: This sheet left blank intentionally

Sheet ECC
A1: Source:
A2: https://www.openreach.co.uk/orpg/home/products/pricing/loadProductPriceDetails.do?data=pAWshrQ7XRSLb9S%2BW8IAk0G8vUtdrlJTUevDC2QqJZ8lMnGHsqdC0vzO163bJmh34D91D7M0q8u%2FIlSgtIFAKw%3D%3D
A3: Price list
A5: Product line: | B5: Service Product Pricing
A6: First level product: | B6: Common products (Subject to applicable LLU/SLU/WLR/Ethernet/GEA Product Agreements)
A7: Second level product: | B7: Excess Construction Charges
A8: Version | B8: N/A
A11: Excess Construction Charges
A14: Excess Construction Charges
A16: Excess Construction Charges Excess Construction Charges will be due and payable (in addition to normal connection charges) where: (a) additional infrastructure is provided to give new or an extended service at an end user&rsquo;s site or; (b) an alternate location requested by the Communications Provider (where there is no regulatory obligation to provide) except in the circumstances where Openreach has decided in its reasonable discretion to extend its network for commercial reasons. When Excess Construction is required, a survey will be carried out and charges will be individually assessed based upon the following rates. These charges are in addition to the standard connection charges which apply for the applicable service.
A18: Feature | B18: Operative date | C18: Until | D18: Single Payment Charge £ Exc VAT | E18: Connection Charge per metre or part thereof £ Exc VAT
A19: Survey Fee / Planning Charge (Previously included in other charges) This item will only be charged if Excess Construction Charges are accepted by a customer except for Non Standard Lines where the Survey Fee will be charged with every order. It will be included as an item within the excess charges calculation and each resurvey additional to the first survey will increment the cost by a further £350. | B19: 30/08/2007 | C19: 31/03/2013 | D19: 350
A20: Survey Fee / Planning Charge (Previously included in other charges) This item will only be charged if Excess Construction Charges are accepted by a customer except for Non Standard Lines where the Survey Fee will be charged with every order. It will be included as an item within the excess charges calculation and each resurvey additional to the first survey will increment the cost by a further £252.40. | B20: 01/04/2013 | C20: 31/03/2014 | D20: 252.4
A21: Survey Fee / Planning Charge (Previously included in other charges) This item will only be charged if Excess Construction Charges are accepted by a customer except for Non Standard Lines where the Survey Fee will be charged with every order. It will be included as an item within the excess charges calculation and each resurvey additional to the first survey will increment the cost by a further £255.58. | B21: 01/04/2014 | C21: 31/03/2015 | D21: 255.58
A22: Survey Fee / Planning Charge (Previously included in other charges) This item will only be charged if Excess Construction Charges are accepted by a customer except for Non Standard Lines where the Survey Fee will be charged with every order. It will be included as an item within the excess charges calculation and each resurvey additional to the first survey will increment the cost by a further £260.30. | B22: 01/04/2015 | C22: 30/04/2016 | D22: 260.3
A23: Survey Fee / Planning Charge (Previously included in other charges) This item will only be charged if Excess Construction Charges are accepted by a customer except for Non Standard Lines where the Survey Fee will be charged with every order. It will be included as an item within the excess charges calculation and each resurvey additional to the first survey will increment the cost by a further £250.79. | B23: 01/05/2016 | C23: 31/03/2017 | D23: 250.79
A24: Survey Fee / Planning Charge (Previously included in other charges) This item will only be charged if Excess Construction Charges are accepted by a customer except for Non Standard Lines where the Survey Fee will be charged with every order. It will be included as an item within the excess charges calculation and each resurvey additional to the first survey will increment the cost by a further £245.14. | B24: 01/04/2017 | C24: 31/03/2018 | D24: 245.14
A25: Survey Fee/ Planning Charge (Previously included in other charges) This item will only be charged if Excess Construction Charges are accepted by a customer except for Non Standard Lines where the Survey Fee will be charged with every order. It will be included as an item within the excess charges calculation and each resurvey additional to the first survey will increment the cost by a further £244.53. | B25: 01/04/2018 | D25: 244.53
A26: Breaking/Drilling through each external wall | B26: 02/01/2001 | C26: 29/08/2007 | D26: 270
A27: Breaking/Drilling through each external wall | B27: 30/08/2007 | C27: 31/03/2013 | D27: 330
A28: Breaking/Drilling through each external wall | B28: 01/04/2013 | C28: 31/03/2014 | D28: 235.37
A29: Breaking/Drilling through each external wall | B29: 01/04/2014 | C29: 31/03/2015 | D29: 238.33
A30: Breaking/Drilling through each external wall | B30: 01/04/2015 | C30: 31/07/2016 | D30: 242.73
A31: Breaking/Drilling through each external wall | B31: 01/08/2016 | C31: 31/03/2018 | D31: 220.81
A32: Breaking/Drilling through each external wall | B32: 01/04/2018 | D32: 220.83
A33: Breaking/Drilling through each internal concrete wall | B33: 02/01/2001 | C33: 29/08/2007 | D33: 150
A34: Breaking/Drilling through each internal concrete wall | B34: 30/08/2007 | C34: 31/03/2013 | D34: 200
A35: Breaking/Drilling through each internal concrete wall | B35: 01/04/2013 | C35: 31/03/2014 | D35: 142.22
A36: Breaking/Drilling through each internal concrete wall | B36: 01/04/2014 | C36: 31/03/2015 | D36: 144.01
A37: Breaking/Drilling through each internal concrete wall | B37: 01/04/2015 | C37: 31/07/2016 | D37: 146.67
A38: Breaking/Drilling through each internal concrete wall | B38: 01/08/2016 | C38: 31/03/2018 | D38: 175.97
A39: Breaking/Drilling through each internal concrete wall | B39: 01/04/2018 | D39: 175.98
A40: Breaking/Drilling through each internal non-concrete wall | B40: 02/01/2001 | C40: 31/03/2013 | D40: 60
A41: Breaking/Drilling through each internal non-concrete wall | B41: 01/04/2013 | C41: 31/03/2014 | D41: 43.06
A42: Breaking/Drilling through each internal non-concrete wall | B42: 01/04/2014 | C42: 31/03/2015 | D42: 43.6
A43: Breaking/Drilling through each internal non-concrete wall | B43: 01/04/2015 | C43: 31/07/2016 | D43: 44.4
A44: Breaking/Drilling through each internal non-concrete wall | B44: 01/08/2016 | D44: 55.91
A45: Provision of other building entry points (eg underground through floors) will be individually priced against customer requirements
A46: Provision of each Pole | B46: 02/01/2001 | C46: 29/08/2007 | D46: 400
A47: Provision of each Pole | B47: 30/08/2007 | C47: 31/07/2016 | D47: 550
A48: Provision of each Pole | B48: 01/08/2016 | C48: 31/03/2017 | D48: 465.66
A49: Provision of each Pole | B49: 01/04/2017 | C49: 31/03/2018 | D49: 394.89
A50: Provision of each Pole | B50: 01/04/2018 | D50: 410.16
A51: Provision of each Radio Mono Pole (Not provided via Openreach) | B51: 30/08/2007 | D51: N/A
A52: Provision of a new footway box (Surface area up to 0.5 sqm) Customers are advised that the smallest footway box necessary to provide service will be charged for. | B52: 30/08/2007 | C52: 31/03/2013 | D52: 750
A53: Provision of a new footway box (Surface area up to 0.5 sqm) Customers are advised that the smallest footway box necessary to provide service will be charged for. | B53: 01/04/2013 | C53: 31/03/2014 | D53: 696.12
A54: Provision of a new footway box (Surface area up to 0.5 sqm) Customers are advised that the smallest footway box necessary to provide service will be charged for. | B54: 01/04/2014 | C54: 31/03/2015 | D54: 704.89
A55: Provision of a new footway box (Surface area up to 0.5 sqm) Customers are advised that the smallest footway box necessary to provide service will be charged for. | B55: 01/04/2015 | C55: 31/07/2016 | D55: 717.93
A56: Provision of a new footway box (Surface area up to 0.5 sqm) Customers are advised that the smallest footway box necessary to provide service will be charged for. | B56: 01/08/2016 | C56: 31/03/2017 | D56: 814.74
A57: Provision of a new footway box (Surface area up to 0.5 sqm) Customers are advised that the smallest footway box necessary to provide service will be charged for. | B57: 01/04/2017 | C57: 31/03/2018 | D57: 801.36
A58: Provision of a new footway box (Surface area up to 0.5 sqm) Customers are advised that the smallest footway box necessary to provide service will be charged for. | B58: 01/04/2018 | D58: 855.23
A59: Provision of a new medium size footway box (Surface area between 0.5 sqm and 1 sqm) | B59: 14/08/2008 | C59: 31/03/2013 | D59: 1650
A60: Provision of a new medium size footway box (Surface area between 0.5 sqm and 1 sqm) | B60: 01/04/2013 | C60: 31/03/2014 | D60: 1532.47
A61: Provision of a new medium size footway box (Surface area between 0.5 sqm and 1 sqm) | B61: 01/04/2014 | C61: 31/03/2015 | D61: 1551.77
A62: Provision of a new medium size footway box (Surface area between 0.5 sqm and 1 sqm) | B62: 01/04/2015 | C62: 31/07/2016 | D62: 1580.47
A63: Provision of a new medium size footway box (Surface area between 0.5 sqm and 1 sqm) | B63: 01/08/2016 | C63: 31/03/2017 | D63: 1432.8
A64: Provision of a new medium size footway box (Surface area between 0.5 sqm and 1 sqm) | B64: 01/04/2017 | C64: 31/03/2018 | D64: 1396.33
A65: Provision of a new medium size footway box (Surface area between 0.5 sqm and 1 sqm) | B65: 01/04/2018 | D65: 1487.14
A66: Provision of a new large size footway box (Surface area greater than 1 sqm) | B66: 14/08/2008 | C66: 31/03/2013 | D66: 2850
A67: Provision of a new large size footway box (Surface area greater than 1 sqm) | B67: 01/04/2013 | C67: 31/03/2014 | D67: 2654.28
A68: Provision of a new large size footway box (Surface area greater than 1 sqm) | B68: 01/04/2014 | C68: 31/03/2015 | D68: 2687.72
A69: Provision of a new large size footway box (Surface area greater than 1 sqm) | B69: 01/04/2015 | C69: 31/07/2016 | D69: 2737.44
A70: Provision of a new large size footway box (Surface area greater than 1 sqm) | B70: 01/08/2016 | C70: 31/03/2017 | D70: 2642.67
A71: Provision of a new large size footway box (Surface area greater than 1 sqm) | B71: 01/04/2017 | C71: 31/03/2018 | D71: 2565.07
A72: Provision of a new large size footway box (Surface area greater than 1 sqm) | B72: 01/04/2018 | D72: 2656.91
A73: Provision of a new small carriageway box (Surface area up to 1 sqm) Customers are advised that the smallest carriageway box necessary to provide service will be charged for. | B73: 14/08/2008 | C73: 31/03/2013 | D73: 3150
A74: Provision of a new small carriageway box (Surface area up to 1 sqm) Customers are advised that the smallest carriageway box necessary to provide service will be charged for. | B74: 01/04/2013 | C74: 31/03/2014 | D74: 2453.96
A75: Provision of a new small carriageway box (Surface area up to 1 sqm) Customers are advised that the smallest carriageway box necessary to provide service will be charged for. | B75: 01/04/2014 | C75: 31/03/2015 | D75: 2484.87
A76: Provision of a new small carriageway box (Surface area up to 1 sqm) Customers are advised that the smallest carriageway box necessary to provide service will be charged for. | B76: 01/04/2015 | C76: 31/07/2016 | D76: 2530.84
A77: Provision of a new small carriageway box (Surface area up to 1 sqm) Customers are advised that the smallest carriageway box necessary to provide service will be charged for. | B77: 01/08/2016 | C77: 31/03/2017 | D77: 2936.44
A78: Provision of a new small carriageway box (Surface area up to 1 sqm) Customers are advised that the smallest carriageway box necessary to provide service will be charged for. | B78: 01/04/2017 | C78: 31/03/2018 | D78: 2889.58
A79: Provision of a new small carriageway box (Surface area up to 1 sqm) Customers are advised that the smallest carriageway box necessary to provide service will be charged for. | B79: 01/04/2018 | D79: 2968.63
A80: Provision of a new medium size carriageway box (Surface area between 1 sqm and 1.25 sqm) | B80: 14/08/2008 | C80: 31/03/2013 | D80: 3850
A81: Provision of a new medium size carriageway box (Surface area between 1 sqm and 1.25 sqm) | B81: 01/04/2013 | C81: 31/03/2014 | D81: 3004.84
A82: Provision of a new medium size carriageway box (Surface area between 1 sqm and 1.25 sqm) | B82: 01/04/2014 | C82: 31/03/2015 | D82: 3042.7
A83: Provision of a new medium size carriageway box (Surface area between 1 sqm and 1.25 sqm) | B83: 01/04/2015 | C83: 31/07/2016 | D83: 3098.98
A84: Provision of a new medium size carriageway box (Surface area between 1 sqm and 1.25 sqm) | B84: 01/08/2016 | C84: 23/05/2017 | D84: 3253.86
A85: Provision of a new medium size carriageway box (Surface area between 1 sqm and 1.25 sqm) | B85: 24/05/2017 | C85: 31/03/2018 | D85: 3600.42
A86: Provision of a new medium size carriageway box (Surface area between 1 sqm and 1.25 sqm) | B86: 01/04/2018 | D86: 3405.56
A87: Provision of a new large size carriageway box (Surface area greater than 1.25 sqm) | B87: 14/08/2008 | C87: 31/03/2013 | D87: 4400
A88: Provision of a new large size carriageway box (Surface area greater than 1.25 sqm) | B88: 01/04/2013 | C88: 31/03/2014 | D88: 3435.54
A89: Provision of a new large size carriageway box (Surface area greater than 1.25 sqm) | B89: 01/04/2014 | C89: 31/03/2015 | D89: 3478.82
A90: Provision of a new large size carriageway box (Surface area greater than 1.25 sqm) | B90: 01/04/2015 | C90: 31/07/2016 | D90: 3543.17
A91: Provision of a new large size carriageway box (Surface area greater than 1.25 sqm) | B91: 01/08/2016 | C91: 23/05/2017 | D91: 4464.45
A92: Provision of a new large size carriageway box (Surface area greater than 1.25 sqm) | B92: 24/05/2017 | C92: 31/03/2018 | D92: 4568.68
A93: Provision of a new large size carriageway box (Surface area greater than 1.25 sqm) | B93: 01/04/2018 | D93: 4603.19
A94: Cable (fibre or copper) including any jointing required | B94: 02/01/2001 | C94: 29/08/2007 | E94: 11.2
A95: Cable (fibre or copper) including any jointing required | B95: 30/08/2007 | C95: 31/03/2013 | E95: 7.5
A96: Cable (fibre or copper) including any jointing required | B96: 01/04/2013 | C96: 31/03/2014 | E96: 4.4
A97: Cable (fibre or copper) including any jointing required | B97: 01/04/2014 | C97: 31/03/2015 | E97: 4.45
A98: Cable (fibre or copper) including any jointing required | B98: 01/04/2015 | C98: 31/07/2016 | E98: 4.53
A99: Cable (fibre or copper) including any jointing required | B99: 01/08/2016 | C99: 31/03/2017 | E99: 5.6
A100: Cable (fibre or copper) including any jointing required | B100: 01/04/2017 | C100: 01/04/2017 | E100: 6.62
A101: Cable (fibre or copper) including any jointing required | B101: 01/04/2017 | C101: 31/03/2018 | E101: 6.27
A102: Cable (fibre or copper) including any jointing required | B102: 01/04/2018 | E102: 7.54
A103: Copper cable supplied for the customer to lay to agreed entry and termination points. (minimum 20m supply) This charge includes on site termination and jointing work by Openreach to connect and terminate the cable. If the order is for less than 40 metres then a visit charge will apply - Please See Visit Charges for details. | B103: 01/09/2005 | C103: 29/08/2007 | E103: 5.6
A104: Copper cable supplied for the customer to lay to agreed entry and termination points. (minimum 20m supply) This charge includes on site termination and jointing work by Openreach to connect and terminate the cable. If the order is for less than 40 metres then a visit charge will apply - Please See Visit Charges for details. | B104: 30/08/2007 | E104: 4
A105: Directly buried cable (including any cable and wayleave costs) | B105: 30/08/2007 | E105: 30
A106: Moleploughing cable or fibre in subduct (includes any cable and wayleave costs) | B106: 30/08/2007 | E106: 25
A107: Blown Fibre | B107: 30/06/2007 | C107: 31/03/2013 | E107: 4
A108: Blown Fibre | B108: 01/04/2013 | C108: 31/03/2014 | E108: 3.1
A109: Blown Fibre | B109: 01/04/2014 | C109: 31/03/2015 | E109: 3.13
A110: Blown Fibre | B110: 01/04/2015 | C110: 30/04/2016 | E110: 3.18
A111: Blown Fibre | B111: 01/05/2016 | C111: 31/03/2017 | E111: 2.52
A112: Blown Fibre | B112: 01/04/2017 | C112: 31/03/2018 | E112: 2.07
A113: Blown Fibre | B113: 01/04/2018 | E113: 1.74
A114: Blown Fibre Tubing in Duct | B114: 30/06/2007 | C114: 31/03/2013 | E114: 3.5
A115: Blown Fibre Tubing in Duct | B115: 01/04/2013 | C115: 31/03/2014 | E115: 2.8
A116: Blown Fibre Tubing in Duct | B116: 01/04/2014 | C116: 31/03/2015 | E116: 2.83
A117: Blown Fibre Tubing in Duct | B117: 01/04/2015 | C117: 31/07/2016 | E117: 2.88
A118: Blown Fibre Tubing in Duct | B118: 01/08/2016 | C118: 31/03/2017 | E118: 3.22
A119: Blown Fibre Tubing in Duct | B119: 01/04/2017 | C119: 01/04/2017 | E119: 3.53
A120: Blown Fibre Tubing in Duct | B120: 01/04/2017 | C120: 31/03/2018 | E120: 3.43
A121: Blown Fibre Tubing in Duct | B121: 01/04/2018 | E121: 3.83
A122: Fibre Cable | B122: 01/12/2017 | E122: 5.5
A123: Internal cabling (including Internal Blown Fibre Tubing) | B123: 30/06/2007 | C123: 31/03/2013 | E123: 8
A124: Internal cabling (including Internal Blown Fibre Tubing) | B124: 01/04/2013 | C124: 31/03/2014 | E124: 5
A125: Internal cabling (including Internal Blown Fibre Tubing) | B125: 01/04/2014 | C125: 31/03/2015 | E125: 5.06
A126: Internal cabling (including Internal Blown Fibre Tubing) | B126: 01/04/2015 | C126: 31/07/2016 | E126: 5.15
A127: Internal cabling (including Internal Blown Fibre Tubing) | B127: 01/08/2016 | C127: 31/03/2017 | E127: 5.97
A128: Internal cabling (including Internal Blown Fibre Tubing) | B128: 01/04/2017 | C128: 01/04/2017 | E128: 6.73
A129: Internal cabling (including Internal Blown Fibre Tubing) | B129: 01/04/2017 | C129: 31/03/2018 | E129: 6.47
A130: Internal cabling (including Internal Blown Fibre Tubing) | B130: 01/04/2018 | E130: 7.42
A131: New Ductwork - Softsurface (includes wayleave costs) | B131: 30/08/2007 | C131: 31/03/2013 | E131: 35
A132: New Ductwork - Softsurface (includes wayleave costs) | B132: 01/04/2013 | C132: 31/03/2014 | E132: 20.03
A133: New Ductwork - Softsurface (includes wayleave costs) | B133: 01/04/2014 | C133: 31/03/2015 | E133: 20.28
A134: New Ductwork - Softsurface (includes wayleave costs) | B134: 01/04/2015 | C134: 31/07/2016 | E134: 20.65
A135: New Ductwork - Softsurface (includes wayleave costs) | B135: 01/08/2016 | C135: 23/05/2017 | E135: 28.61
A136: New Ductwork - Softsurface (includes wayleave costs) | B136: 24/05/2017 | C136: 31/03/2018 | E136: 28.79
A137: New Ductwork - Softsurface (includes wayleave costs) | B137: 01/04/2018 | E137: 29.76
A138: New Ductwork - Footway (includes wayleave costs) | B138: 30/08/2007 | C138: 31/03/2013 | E138: 80
A139: New Ductwork - Footway (includes wayleave costs) | B139: 01/04/2013 | C139: 31/03/2014 | E139: 40.06
A140: New Ductwork - Footway (includes wayleave costs) | B140: 01/04/2014 | C140: 31/03/2015 | E140: 40.56
A141: New Ductwork - Footway (includes wayleave costs) | B141: 01/04/2015 | C141: 31/07/2016 | E141: 41.31
A142: New Ductwork - Footway (includes wayleave costs) | B142: 01/08/2016 | C142: 23/05/2017 | E142: 60.4
A143: New Ductwork - Footway (includes wayleave costs) | B143: 24/05/2017 | C143: 31/03/2018 | E143: 60.7
A144: New Ductwork - Footway (includes wayleave costs) | B144: 01/04/2018 | E144: 63.25
A145: New Ductwork - Carriageway (includes wayleave costs) | B145: 30/08/2007 | C145: 31/03/2013 | E145: 140
A146: New Ductwork - Carriageway (includes wayleave costs) | B146: 01/04/2013 | C146: 31/03/2014 | E146: 80.12
A147: New Ductwork - Carriageway (includes wayleave costs) | B147: 01/04/2014 | C147: 31/03/2015 | E147: 81.12
A148: New Ductwork - Carriageway (includes wayleave costs) | B148: 01/04/2015 | C148: 31/07/2016 | E148: 82.62
A149: New Ductwork - Carriageway (includes wayleave costs) | B149: 01/08/2016 | C149: 23/05/2017 | E149: 110.07
A150: New Ductwork - Carriageway (includes wayleave costs) | B150: 24/05/2017 | C150: 31/03/2018 | E150: 112.05
A151: New Ductwork - Carriageway (includes wayleave costs) | B151: 01/04/2018 | E151: 116.07
A152: Trunking and traywork within enduser's curtilage | B152: 02/01/2001 | C152: 31/03/2013 | E152: 40
A153: Trunking and traywork within enduser's curtilage | B153: 01/04/2013 | C153: 31/03/2014 | E153: 29.04
A154: Trunking and traywork within enduser's curtilage | B154: 01/04/2014 | C154: 31/03/2015 | E154: 29.4
A155: Trunking and traywork within enduser's curtilage | B155: 01/04/2015 | C155: 31/07/2016 | E155: 29.94
A156: Trunking and traywork within enduser's curtilage | B156: 01/08/2016 | E156: 37.91
A158: Miscellaneous or non standard items will be priced on application. (This can include joint boxes that are larger than the normal item defined in the price list) Additional charges will be raised where applicable for:Internal/external shiftsOut of Hours (Time Related Charges will apply) The above charges will apply to requirements on the customer or end user's premises, and on third party land and the public highway or BT exchange (subject to any applicable third party and/or planning consents required) Traffic Management Charges will be charged as additional miscellaneous charges. Incorrect price increases for Cable (fibre or copper), Blown Fibre and Blown fibre tubing in duct products were notified in ACCN OR482 to come into effect on 1 April 2017. These three specific prices will not now apply, but revised (lower) price increases will come into effect instead on the same day.
A161: Exemptions From Excess Charges
A163: Excess construction charges are paid at the same time as the normal product connection charges. The table below details exemptions from excess construction charges. Exemptions apply to individual sites and are not transferable to other sites. Only one exemption is available per site. If the customer requests a method of providing service which is more costly than the least cost network solution Openreach would normally provide it will charge the customer the actual charges for this requested method of providing service less the lower of either: (a) the exemption or; (b) the full charges for the least cost network solution General condition - applies to Wholesale Access, Wholesale Digital Access and Local Loop Unbundling Where an order is received for concurrent provision of service to a number of individual end user sites (including those in multi-tenanted premises) on the same date, the exemption for each end user can be added together and the exemptions will be applied collectively. However, this only applies to the concurrent provision work on the same date and the application of the exemption cannot be deferred to a later date. EXEMPTIONS
A165: Feature | B165: Description | C165: Operative date | D165: Until | E165: Exemption limit £ Exc VAT
A166: General Exemptions | B166: No exemption will apply to: - Non-Served Premises | C166: 30/08/2007 | E166: 0
A167: General Exemptions | B167: No exemption will apply to: - Short Duration Lines | C167: 30/08/2007 | E167: 0
A168: General Exemptions | B168: No exemption will apply to: - Time Related Charges for out of hours working | C168: 30/08/2007 | E168: 0
A169: General Exemptions | B169: No exemption will apply to: - Alternatively Routed Lines | C169: 30/08/2007 | E169: 0
A170: General Exemptions | B170: No exemption will apply to: - Furnished holiday lettings, Holiday caravans, chalets, log cabins etc. on a holiday site, premises used as a second home. | C170: 30/08/2007 | E170: 0
A171: General Exemptions | B171: No exemption is available if an exemption has been given already at the site on an earlier occasion | C171: 30/08/2007 | E171: 0
A172: Specific Exemption - Removal of DACS equipment | B172: The first £8000 of cost to remove DACS equipment will not be raised, where required. | C172: 01/04/2013 | E172: 8000
A173: Product - Wholesale Access | B173: First Line. - The first £3400.00 of charges will not be raised against the first narrowband voice service provided at a site. | C173: 30/08/2007 | E173: 3400
A174: Product - Wholesale Access | B174: Second and subsequent lines. - Only one exemption is available per premise. If no other exemption has been applied to a premise the first £1000 of charges will not be raised where network capacity needs to be increased for second or subsequent lines at that premise. | C174: 30/08/2007 | D174: 30/04/2011 | E174: 1000
A175: Product - Wholesale Access | B175: Second line - The first £1000.00 of charges will not be raised against the second narrowband voice service provided at a site. However, only one exemption is available per premise. If another exemption has been applied to a premise this exemption does not apply. | C175: 01/05/2011 | E175: 1000
A176: Product - Local Loop Unbundling | B176: First Narrowband Line. - The first £3400 of charges will not be raised against the first narrowband voice service provided at a site. | C176: 30/08/2007 | E176: 3400
A177: Product - Local Loop Unbundling | B177: Second and subsequent lines or Non Voice Narrowband line. - Only one exemption is available per premise. If no other exemption has been applied to a premise the first £1000 of charges will not be raised where network capacity needs to be increased for second or subsequent lines at that premise. | C177: 30/08/2007 | D177: 30/04/2011 | E177: 1000
A178: Product - Local Loop Unbundling | B178: Second Narrowband line - The first £1000.00 of charges will not be raised against the second narrowband voice service provided at a site. However, only one exemption is available per premise. If another exemption has been applied to a premise this exemption does not apply. | C178: 01/05/2011 | E178: 1000
A179: Product - Sub Loop Unbundling | B179: First Narrowband Line. - The first £3400 of charges will not be raised against the first narrowband voice service provided at a site. | C179: 07/08/2013 | E179: 3400
A180: Product - Sub Loop Unbundling | B180: Second Narrowband line - The first £1000.00 of charges will not be raised against the second narrowband voice service provided at a site. However, only one exemption is available per premise. If another exemption has been applied to a premise this exemption does not apply. | C180: 07/08/2013 | E180: 1000
A181: Product - Wholesale Digital Access (ISDN2 products) - also applicable if service is provided by conversion of exchange lines. | B181: Only one exemption is available per premise. If no other exemption has been applied to a premise the first £1000 of charges will not be raised where network capacity needs to be increased for second or subsequent lines at that premise. | C181: 30/08/2007 | D181: 30/04/2011 | E181: 1000
A182: Product - Wholesale Digital Access (ISDN2 products) - also applicable if service is provided by conversion of exchange lines. | B182: Only one exemption is available per premise. If no other exemption has been applied to a premise the first £1000 of charges will not be raised where network capacity needs to be increased. | C182: 01/05/2011 | E182: 1000
A183: Product - Wholesale ISDN30 | B183: No exemptions to the existing or a previous customer. Excess Charges do not apply for Wholesale ISDN30 products where existing capacity needs to be increased. | C183: 30/08/2007 | E183: 0
A184: Product: Ethernet Access Direct (EAD) circuits, excluding Resilient Option 1 variants. | B184: Exemption applies after the introduction date. ECCs will be calculated using the unit rates, but only communicated during the order process and billed if they exceed the exemption level. This exemption is funded through the raising of a £656 Fixed Fee on all EAD circuits (excluding Resilient Option 1) which is billed as part of the connection charge. | C184: 01/06/2014 | E184: 2800
A185: Product: Street Access 100Mbps 60 month minimum period commitment | B185: Exemption applies after the introduction date. ECCs will be calculated using the unit rates, but only communicated during the order process and billed if they exceed the exemption level. | C185: 27/07/2016 | E185: 2800
A186: Product - Private Circuits, WES/BES circuits and Broadband conversions of analogue lines) | B186: No exemptions to the existing or a previous customer. Excess Charges do not apply for WES/BES & EBD/BTL products where existing capacity needs to be increased. | C186: 30/08/2007 | E186: 0
A187: Product - Generic Ethernet Access Fibre to the Premises (FTTP) at Brownfield sites | B187: Exemption is applied to only the first service installed per premise. If no previous GEA installation exemption has been applied to a premise, the first £1000 of charges will not be raised where additional 'last drop' provision work from the fibre Distribution Point (DP) into the end user premises is required. | C187: 02/07/2012 | E187: 1000
A188: Product - Generic Ethernet Access Fibre to the Premises (FTTP) on Demand - Pilot Phase 2 | B188: Exemption is applied to GEA FTTP on Demand orders raised as part of the Pilot Phase 2 only. These prices relate to Pilot Phase 2 only and should not be taken as an indication of the launch pricing structure or prices. | C188: 01/03/2013 | D188: 26/04/2013 | E188: 4950
A189: Product - Generic Ethernet Access Fibre to the Premises (FTTP) on Demand | B189: Exemption is applied to GEA FTTP on Demand orders raised from 29/4/13 which are calculated using threshold cost values. The specific ECC charge, where applicable, will be provided on an individual order basis. These prices relate to the Early Market Deployment of GEA FTTP on Demand only and should not be taken as an indication of the launch pricing structure or prices. | C189: 29/04/2013 | E189: On Application
D192: British Telecommunications plc
D193: Registered office:
A194: Date: 20 December 2017 | D194: 81 Newgate Street
D195: London EC1A 7AJ
D196: Registered in England and Wales No. 1800000
D197: www.openreach.co.uk

Sheet PIA - Duct products
A1: Source:
A2: https://www.openreach.co.uk/orpg/home/products/pricing/loadProductPriceDetails.do?data=z75T9D0yfFKL0UorCMMA7OVMbA8c5ofXzFv23yZvBj9Z6rNZujnCs99NbIKJZPD9hXYmiijxH6wrCQm97GZMyQ%3D%3D
A3: Price list
A6: Product line: | B6: Physical Infrastructure Pricing
A7: First level product: | B7: Physical Infrastructure Products
A8: Second level product: | B8: Duct Products
A9: Version | B9: N/A
A12: Duct Products
A14: The following table contains the core products for Duct sharing. Definitions of Spine duct and Lead-in duct are contained in the Product Description. The Licence Fee (per annum) is calculated by adding together the relevant Duct and Pole Products with the Ancillary Fees, e.g. Customer Apparatus In-line Splice hosting and distribution joints.
A16: Feature | B16: Note | C16: Operative date | D16: Until | E16: Minimum Licence Period (years) | F16: Charge per annum £ Exc VAT | G16: Charge per annum for BDUK related bids £ Exc VAT
A17: Facility in Spine duct per metre - single bore | B17: 1, 3 | C17: 02/08/2012 | D17: 15/09/2013 | E17: 5 | F17: 0.86 | G17: 0.60
A18: Facility in Spine duct per metre - single bore | B18: 1, 3, 5 | C18: 16/09/2013 | D18: 30/04/2018 | E18: 5 | F18: 0.60 | G18: n/a
A19: Facility in Spine duct per metre - single bore | B19: 1, 3, 5, 6, 9 | C19: 01/05/2018 | E19: 5 | F19: 0.28 | G19: n/a
A20: Facility in Spine duct per metre - 2 bores | B20: 1, 3, 4 | C20: 02/08/2012 | D20: 15/09/2013 | E20: 5 | F20: 0.54 | G20: 0.43
A21: Facility in Spine duct per metre - 2 bores | B21: 1, 3, 4, 5 | C21: 16/09/2013 | D21: 30/04/2018 | E21: 5 | F21: 0.43 | G21: n/a
A22: Facility in Spine duct per metre - 2 bores | B22: 1, 3, 4, 5, 7, 9 | C22: 01/05/2018 | E22: 5 | F22: 0.18 | G22: n/a
A23: Facility in Spine duct per metre - 3+ bores | B23: 1, 3, 4 | C23: 02/08/2012 | D23: 15/09/2013 | E23: 5 | F23: 0.44 | G23: 0.37
A24: Facility in Spine duct per metre - 3+ bores | B24: 1, 3, 4, 5 | C24: 16/09/2013 | D24: 30/04/2018 | E24: 5 | F24: 0.37 | G24: n/a
A25: Facility in Spine duct per metre - 3+ bores | B25: 1, 3, 4, 5, 8, 9 | C25: 01/05/2018 | E25: 5 | F25: 0.13 | G25: n/a
A26: Facility in Lead-in duct per metre | B26: 1, 3 | C26: 02/08/2012 | D26: 15/09/2013 | E26: n/a | F26: 1.34 | G26: 0.84
A27: Facility in Lead-in duct per metre | B27: 1, 3, 5 | C27: 16/09/2013 | D27: 30/04/2018 | E27: n/a | F27: 0.84 | G27: n/a
A28: Facility in Lead-in duct per metre | B28: 1, 3, 5, 9 | C28: 01/05/2018 | E28: n/a | F28: 0.55 | G28: n/a
A29: Facility in Lead-in link duct per metre (lead in rate) | B29: 1, 2, 3 | C29: 02/08/2012 | D29: 15/09/2013 | E29: n/a | F29: 1.34 | G29: 0.84
A30: Facility in Lead-in link duct per metre (lead in rate) | B30: 1, 2, 3, 5 | C30: 16/09/2013 | D30: 30/04/2018 | E30: n/a | F30: 0.84 | G30: n/a
A31: Facility in Lead-in link duct per metre (lead in rate) | B31: 1, 2, 3, 5, 9 | C31: 01/05/2018 | E31: n/a | F31: 0.55 | G31: n/a
A32: Facility in Lead-in link duct per metre (spine single bore rate) | B32: 1, 2, 3 | C32: 02/08/2012 | D32: 15/09/2013 | E32: n/a | F32: 0.86 | G32: 0.60
A33: Facility in Lead-in link duct per metre (spine single bore rate) | B33: 1, 2, 3, 5 | C33: 16/09/2013 | D33: 30/04/2018 | E33: n/a | F33: 0.60 | G33: n/a
A34: Facility in Lead-in link duct per metre (spine single bore rate) | B34: 1, 2, 3, 5, 6, 9 | C34: 01/05/2018 | E34: n/a | F34: 0.28 | G34: n/a
A35: Facility in Lead-in link duct per metre (spine 2 bore rate) | B35: 1, 2, 3, 4 | C35: 02/08/2012 | D35: 15/09/2013 | E35: n/a | F35: 0.54 | G35: 0.43
A36: Facility in Lead-in link duct per metre (spine 2 bore rate) | B36: 1, 2, 3, 4, 5 | C36: 16/09/2013 | D36: 30/04/2018 | E36: n/a | F36: 0.43 | G36: n/a
A37: Facility in Lead-in link duct per metre (spine 2 bore rate) | B37: 1, 2, 3, 4, 5, 7, 9 | C37: 01/05/2018 | E37: n/a | F37: 0.18 | G37: n/a
A38: Facility in Lead-in link duct per metre (spine 3+ bore rate) | B38: 1, 2, 3, 4 | C38: 02/08/2012 | D38: 15/09/2013 | E38: n/a | F38: 0.44 | G38: 0.37
A39: Facility in Lead-in link duct per metre (spine 3+ bore rate) | B39: 1, 2, 3, 4, 5 | C39: 16/09/2013 | D39: 30/04/2018 | E39: n/a | F39: 0.37 | G39: n/a
A40: Facility in Lead-in link duct per metre (spine 3+ bore rate) | B40: 1, 2, 3, 4, 5, 8, 9 | C40: 01/05/2018 | E40: n/a | F40: 0.13 | G40: n/a
A42: Notes:
A43: 1) Each space in the Access Network in the Customer's Order will be for a minimum length of 100m of spine duct (per exchange area) except where an Order is for an addition to an existing Order already submitted by the Customer for a contiguous extension to an existing Facility. Orders for less than 100m of spine duct will be reviewed and considered by Openreach if the orders are for SLU backhaul NGA delivery. 2) Where a lead-in passes into a 90mm duct from an Openreach junction box hosting the Copper DP, the &lsquo;lead-in link&rsquo; product should be used. For this product, spine duct rates will apply for the portion of the route from the junction box to the swept-t joint or frontage-t joint. Lead-in rates apply thereafter. 3) Rental is for per metre of direct cable, blown fibre tubing or sub-duct of diameter up to 25mm. 4) The 2 bore rate will apply where a CP rents a facility in a route containing 2 bores. The 3+ bore rate will apply where a CP rents a facility in a route containing 3 or more bores. 5) From 16/09/2013, the distinction between BDUK and Non BDUK regional prices was removed and a single price now applies. 6) Openreach amends its process for billing for products where the annual charge is not divisible by twelve. Openreach will flex the monthly charges by a penny up or down, so that over the course of the year the total price charged is no more than the Ofcom charge ceiling. The flexing of the monthly charges is shown below. For the period 1 May 2018 to 31 March 2019:May to October &pound;0.03November to March &pound;0.02 7) Openreach amends its process for billing for products where the annual charge is not divisible by twelve. Openreach will flex the monthly charges by a penny up or down, so that over the course of the year the total price charged is no more than the Ofcom charge ceiling. The flexing of the monthly charges is shown below. For the period 1 May 2018 to 31 March 2019:May to August &pound;0.01September to March &pound;0.02 8) Openreach amends its process for billing for products where the annual charge is not divisible by twelve.Openreach will flex the monthly charges by a penny up or down, so that over the course of the year the total price charged is no more than the Ofcom charge ceiling. The flexing of the monthly charges is shown below. For the period 1 May 2018 to 31 March 2019:May to January &pound;0.01Feb to March &pound;0.02 9) For 2018/19 charge per annum applies for First Relevant PIA Year from 1 May 2018 to 31 March 2019
D45: British Telecommunications plc
D46: Registered office:
A47: Date: 29 March 2018 | D47: 81 Newgate Street
D48: London EC1A 7AJ
D49: Registered in England and Wales No. 1800000
D50: www.openreach.co.uk

Sheet PIA - Ancillary activities
A1: Source:
A2: https://www.openreach.co.uk/orpg/home/products/pricing/loadProductPriceDetails.do?data=sa6zIVtMjnxb62LCQAxAfBR4OorwSeikdRCE95QFFYtZ6rNZujnCs99NbIKJZPD9hXYmiijxH6wrCQm97GZMyQ%3D%3D
A3: Price list
A6: Product line: | B6: Physical Infrastructure Pricing
A7: First level product: | B7: Physical Infrastructure Products
A8: Second level product: | B8: Ancillary Activities
A9: Version | B9: N/A
A12: Ancillary Activities
A14: There are a range of (largely optional) ancillary activities which may be ordered by the Customer for which the following charges apply.
A16: Feature | B16: Note | C16: Operative date | D16: Until | E16: Charge £ Exc VAT
A17: Duct infrastructure uplift charge per metre | B17: 1, 2 | C17: 20/12/2011 | D17: 30/09/2017 | E17: 1
A18: Duct infrastructure uplift charge per metre | B18: 1, 2 | C18: 01/10/2017 | E18: 0
A19: Operative accreditation - surveyor | B19: 3 | C19: 20/12/2011 | D19: 30/09/2017 | E19: 615.00
A20: Operative accreditation - surveyor | B20: 3 | C20: 01/10/2017 | D20: 30/06/2018 | E20: 612.26
A21: Operative accreditation - surveyor | B21: 3 | C21: 01/07/2018 | E21: 615.61
A22: Operative accreditation - overhead | B22: 3 | C22: 20/12/2011 | D22: 30/09/2017 | E22: 615.00
A23: Operative accreditation - overhead | B23: 3 | C23: 01/10/2017 | D23: 30/06/2018 | E23: 612.26
A24: Operative accreditation - overhead | B24: 3 | C24: 01/07/2018 | E24: 615.61
A25: Operative accreditation - underground | B25: 3 | C25: 20/12/2011 | D25: 30/09/2017 | E25: 615.00
A26: Operative accreditation - underground | B26: 3 | C26: 01/10/2017 | D26: 30/06/2018 | E26: 612.26
A27: Operative accreditation - underground | B27: 3 | C27: 01/07/2018 | E27: 615.61
A28: Assessor accreditation - surveyor | B28: 3 | C28: 20/12/2011 | D28: 30/09/2017 | E28: 615.00
A29: Assessor accreditation - surveyor | B29: 3 | C29: 01/10/2017 | D29: 30/06/2018 | E29: 612.26
A30: Assessor accreditation - surveyor | B30: 3 | C30: 01/07/2018 | E30: 615.61
A31: Assessor accreditation - overhead | B31: 3 | C31: 20/12/2011 | D31: 30/09/2017 | E31: 615.00
A32: Assessor accreditation - overhead | B32: 3 | C32: 01/10/2017 | D32: 30/06/2018 | E32: 612.26
A33: Assessor accreditation - overhead | B33: 3 | C33: 01/07/2018 | E33: 615.61
A34: Assessor accreditation - underground | B34: 3 | C34: 20/12/2011 | D34: 30/09/2017 | E34: 615.00
A35: Assessor accreditation - underground | B35: 3 | C35: 01/10/2017 | D35: 30/06/2018 | E35: 612.26
A36: Assessor accreditation - underground | B36: 3 | C36: 01/07/2018 | E36: 615.61
A37: CP Accreditation &#150; per licensing site | B37: 3 | C37: 20/12/2011 | D37: 30/09/2017 | E37: 263.00
A38: CP Accreditation &#150; per licensing site | B38: 3 | C38: 01/10/2017 | D38: 30/06/2018 | E38: 242.38
A39: CP Accreditation &#150; per licensing site | B39: 3 | C39: 01/07/2018 | E39: 244.05
A40: Route Plan Provision &#150; per hour | C40: 20/12/2011 | D40: 30/09/2017 | E40: 75.00
A41: Route Plan Provision &#150; per hour | C41: 01/10/2017 | D41: 30/04/2018 | E41: 67.33
A42: Route Plan Provision &#150; per hour | C42: 01/05/2018 | E42: 0.00
A43: Technical Validation (survey, approval, build) &#150; per hour | C43: 20/12/2011 | D43: 30/09/2017 | E43: 75.00
A44: Technical Validation (survey, approval, build) &#150; per hour | C44: 01/10/2017 | D44: 30/04/2018 | E44: 67.33
A45: Technical Validation (survey, approval, build) &#150; per hour | C45: 01/05/2018 | E45: 0.00
A46: Network records administration charge &#150; per hour | C46: 20/12/2011 | D46: 12/06/2013 | E46: 75.00
A47: Network records administration charge; per hour | B47: 24 | C47: 13/06/2013 | D47: 30/09/2017 | E47: 75.00
A48: Network records administration charge; per hour | B48: 24 | C48: 01/10/2017 | D48: 30/04/2018 | E48: 67.33
A49: Network records administration charge; per hour | B49: 24 | C49: 01/05/2018 | E49: 0.00
A50: Cable recovery (light) - per 100m | B50: 4, 5 | C50: 20/12/2011 | D50: 30/06/2018 | E50: 92.00
A51: Cable recovery (light) - per 100m | B51: 4, 5 | C51: 01/07/2018 | E51: 95.15
A52: Cable recovery (heavy) - per 100m | B52: 4, 5 | C52: 20/12/2011 | D52: 30/09/2017 | E52: 320.00
A53: Cable recovery (heavy) - per 100m | B53: 4, 5 | C53: 01/10/2017 | D53: 30/06/2018 | E53: 220.41
A54: Cable recovery (heavy) - per 100m | B54: 4, 5 | C54: 01/07/2018 | E54: 227.99
A55: Cable recovery (large) - per 100m | B55: 4, 5 | C55: 20/12/2011 | D55: 30/09/2017 | E55: 466.00
A56: Cable recovery (large) - per 100m | B56: 4, 5 | C56: 01/10/2017 | D56: 30/06/2018 | E56: 439.16
A57: Cable recovery (large) - per 100m | B57: 4, 5 | C57: 01/07/2018 | E57: 454.25
A58: Blockage clearance (initial) - per blockage | B58: 6 | C58: 20/12/2011 | D58: 30/09/2017 | E58: 358.00
A59: Blockage clearance (initial) - per blockage | B59: 6 | C59: 01/10/2017 | D59: 30/06/2018 | E59: 536.52
A60: Blockage clearance (initial) - per blockage | B60: 6 | C60: 01/07/2018 | E60: 585.79
A61: Blockage clearance (subsequent) - per blockage | B61: 6 | C61: 20/12/2011 | D61: 30/09/2017 | E61: 306.00
A62: Blockage clearance (subsequent) - per blockage | B62: 6 | C62: 01/10/2017 | D62: 30/06/2018 | E62: 450.38
A63: Blockage clearance (subsequent) - per blockage | B63: 6 | C63: 01/07/2018 | E63: 496.86
A64: Aborted clearance of a blockage in a duct per aborted clearance | B64: 7 | C64: 20/12/2011 | D64: 30/09/2017 | E64: 304.00
A65: Aborted clearance of a blockage in a duct per aborted clearance | B65: 7 | C65: 01/10/2017 | D65: 30/06/2018 | E65: 455.52
A66: Aborted clearance of a blockage in a duct per aborted clearance | B66: 7 | C66: 01/07/2018 | E66: 471.53
A67: Aborted clearance of an additional blockage in a duct per aborted clearance | B67: 7 | C67: 20/12/2011 | D67: 30/09/2017 | E67: 254.00
A68: Aborted clearance of an additional blockage in a duct per aborted clearance | B68: 7 | C68: 01/10/2017 | D68: 30/06/2018 | E68: 420.16
A69: Aborted clearance of an additional blockage in a duct per aborted clearance | B69: 7 | C69: 01/07/2018 | E69: 434.59
A70: Joint box breakthrough | B70: 8 | C70: 20/12/2011 | D70: 30/04/2018 | E70: 600.00
A71: Joint box breakthrough | B71: 8 | C71: 01/05/2018 | E71: 566.35
A72: Joint box breakthrough administration charge | B72: 8 | C72: 20/12/2011 | D72: 30/09/2017 | E72: 12.00
A73: Joint box breakthrough administration charge | C73: 01/10/2017 | D73: 30/04/2018 | E73: 11.22
A74: Joint box breakthrough administration charge | C74: 01/05/2018 | E74: 0.00
A75: Pole recovery (removal) per pole | C75: 20/12/2011 | D75: 30/09/2017 | E75: 163.00
A76: Pole recovery (removal) per pole | C76: 01/10/2017 | D76: 30/06/2018 | E76: 129.35
A77: Pole recovery (removal) per pole | C77: 01/07/2018 | E77: 134.11
A78: Customer changeover, per pole visit | B78: 9 | C78: 20/12/2011 | D78: 31/03/2015 | E78: 85.00
A79: Customer changeover, per pole visit | B79: 9 | C79: 01/04/2015 | D79: 31/03/2016 | E79: 52.70
A80: Customer changeover, per pole visit | B80: 9 | C80: 01/04/2016 | D80: 30/04/2018 | E80: 52.80
A81: Customer changeover, per pole visit | B81: 9 | C81: 01/05/2018 | E81: 45.91
A82: Customer changeover - hourly rate | B82: 9 | C82: 20/12/2011 | D82: 31/03/2015 | E82: 55.00
A83: Customer changeover - hourly rate | B83: 9 | C83: 01/04/2015 | D83: 31/03/2016 | E83: 52.70
A84: Customer changeover - hourly rate | B84: 9 | C84: 01/04/2016 | D84: 30/04/2018 | E84: 52.80
A85: Customer changeover - hourly rate | B85: 9 | C85: 01/05/2018 | E85: 45.91
A86: Removal of locked lids - visit | B86: 10 | C86: 20/12/2011 | D86: 31/03/2015 | E86: 85.00
A87: Removal of locked lids - visit | B87: 10 | C87: 01/04/2015 | D87: 31/03/2016 | E87: 52.70
A88: Removal of locked lids - visit | B88: 10 | C88: 01/04/2016 | D88: 30/04/2018 | E88: 52.80
A89: Removal of locked lids - visit | B89: 10 | C89: 01/05/2018 | E89: 45.91
A90: Removal of locked lids - per hour | B90: 10 | C90: 20/12/2011 | D90: 31/03/2015 | E90: 55.00
A91: Removal of locked lids - per hour | B91: 10 | C91: 01/04/2015 | D91: 31/03/2016 | E91: 52.70
A92: Removal of locked lids - per hour | B92: 10 | C92: 01/04/2016 | D92: 30/04/2018 | E92: 52.80
A93: Removal of locked lids - per hour | B93: 10 | C93: 01/05/2018 | E93: 45.91
A94: Issue of Security Key 1A - per key | C94: 19/07/2017 | E94: 15.00
A95: Diversionary Works &#150; per hour | B95: 11 | C95: 20/12/2011 | D95: 30/09/2017 | E95: 75.00
A96: Diversionary Works &#150; per hour | B96: 11 | C96: 01/10/2017 | D96: 30/06/2018 | E96: 67.33
A97: Diversionary Works &#150; per hour | B97: 11 | C97: 01/07/2018 | E97: 67.79
A98: Restoration &#150; per hour | B98: 12 | C98: 20/12/2011 | D98: 30/09/2017 | E98: 75.00
A99: Restoration &#150; per hour | B99: 12 | C99: 01/10/2017 | D99: 30/06/2018 | E99: 67.33
A100: Restoration &#150; per hour | B100: 12 | C100: 01/07/2018 | E100: 67.79
A101: Co-op Survey; per survey | B101: 13 | C101: 20/12/2011 | D101: 31/03/2015 | E101: 350.00
A102: Co-op Survey; per survey | B102: 13 | C102: 01/04/2015 | D102: 30/09/2017 | E102: 260.30
A103: Co-op Survey; per survey | B103: 13 | C103: 01/10/2017 | D103: 30/04/2018 | E103: 245.14
A104: Co-op Survey; per survey | B104: 13 | C104: 01/05/2018 | E104: 244.52
A105: Openreach Assist - per visit | B105: 14 | C105: 20/12/2011 | D105: 31/03/2015 | E105: 85.00
A106: Openreach Assist - per visit | B106: 14 | C106: 01/04/2015 | D106: 31/03/2016 | E106: 52.70
A107: Openreach Assist - per visit | B107: 14 | C107: 01/04/2016 | D107: 30/04/2018 | E107: 52.80
A108: Openreach Assist - per visit | B108: 14 | C108: 01/05/2018 | E108: 45.91
A109: Openreach Assist - per hour | B109: 14 | C109: 20/12/2011 | D109: 31/03/2015 | E109: 55.00
A110: Openreach Assist - per hour | B110: 14 | C110: 01/04/2015 | D110: 31/03/2016 | E110: 52.70
A111: Openreach Assist - per hour | B111: 14 | C111: 01/04/2016 | D111: 30/04/2018 | E111: 52.80
A112: Openreach Assist - per hour | B112: 14 | C112: 01/05/2018 | E112: 45.91
A113: Exchange Access Link (up to 24 fibres) &#150; per cable | C113: 20/12/2011 | D113: 30/09/2017 | E113: 2312.31
A114: Exchange Access Link (up to 24 fibres) &#150; per cable | C114: 01/10/2017 | E114: Withdrawn
A115: Exchange Access Link (up to 48 fibres) &#150; per cable | C115: 20/12/2011 | D115: 30/09/2017 | E115: 2721.24
A116: Exchange Access Link (up to 48 fibres) &#150; per cable | C116: 01/10/2017 | E116: Withdrawn
A117: Joint Chamber/Manhole 'pull through' &#150; per 100m sub-duct | B117: 15 | C117: 20/12/2011 | D117: 30/09/2017 | E117: 522.00
A118: Joint Chamber/Manhole 'pull through' &#150; per 100m sub-duct | B118: 15 | C118: 01/10/2017 | E118: 175.70
A119: Abortive time charge - per hour, per operative | B119: 16 | C119: 20/12/2011 | D119: 30/09/2017 | E119: 50.00
A120: Abortive time charge - per hour, per operative | B120: 16 | C120: 01/10/2017 | D120: 30/04/2018 | E120: 52.80
A121: Abortive time charge - per hour, per operative | B121: 16 | C121: 01/05/2018 | E121: 45.91
A122: Abortive visit (for cable recovery) - per hour, per operative | C122: 20/12/2011 | D122: 30/09/2017 | E122: 42.00
A123: Abortive visit (for cable recovery) - per hour, per operative | C123: 01/10/2017 | D123: 30/06/2018 | E123: 30.18
A124: Abortive visit (for cable recovery) - per hour, per operative | C124: 01/07/2018 | E124: 31.36
A125: Work outside Working Hours (outside working day and not including Sundays or Bank Holidays) - per hour | B125: 17 | C125: 20/12/2011 | D125: 31/03/2015 | E125: 85.00
A126: Work outside Working Hours (outside working day and not including Sundays or Bank Holidays) - per hour | B126: 17 | C126: 01/04/2015 | D126: 31/03/2016 | E126: 80.05
A127: Work outside Working Hours (outside working day and not including Sundays or Bank Holidays) - per hour | B127: 17 | C127: 01/04/2016 | D127: 30/04/2018 | E127: 79.20
A128: Work outside Working Hours (outside working day and not including Sundays or Bank Holidays) - per hour | B128: 17 | C128: 01/05/2018 | E128: 68.86
A129: Work outside Working Hours (Bank Holidays or Sundays) - per hour | B129: 17 | C129: 20/12/2011 | D129: 31/03/2015 | E129: 100.00
A130: Work outside Working Hours (Bank Holidays or Sundays) - per hour | B130: 17 | C130: 01/04/2015 | D130: 31/03/2016 | E130: 105.40
A131: Work outside Working Hours (Bank Holidays or Sundays) - per hour | B131: 17 | C131: 01/04/2016 | D131: 30/04/2018 | E131: 105.60
A132: Work outside Working Hours (Bank Holidays or Sundays) - per hour | B132: 17 | C132: 01/05/2018 | E132: 91.82
A133: Provision of an Earth Spike for pole | C133: 20/12/2011 | D133: 30/09/2017 | E133: 78.00
A134: Provision of an Earth Spike for pole | C134: 01/10/2017 | D134: 30/06/2018 | E134: 104.10
A135: Provision of an Earth Spike for pole | C135: 01/07/2018 | E135: 107.76
A136: Renew, provide and/or re position Pole steps on Pole - per pole | C136: 20/12/2011 | D136: 30/09/2017 | E136: 54.00
A137: Renew, provide and/or re position Pole steps on Pole - per pole | C137: 01/10/2017 | D137: 30/06/2018 | E137: 38.29
A138: Renew, provide and/or re position Pole steps on Pole - per pole | C138: 01/07/2018 | E138: 39.73
A139: Install a lightning protection module | B139: 18 | C139: 20/12/2011 | D139: 30/09/2017 | E139: 46.00
A140: Install a lightning protection module | B140: 18 | C140: 01/10/2017 | D140: 30/06/2018 | E140: 41.49
A141: Install a lightning protection module | B141: 18 | C141: 01/07/2018 | E141: 43.46
A142: Provision of a 'BT 66B' for lightning protection | B142: 18 | C142: 20/12/2011 | D142: 30/09/2017 | E142: 78.00
A143: Provision of a 'BT 66B' for lightning protection | B143: 18 | C143: 01/10/2017 | D143: 30/06/2018 | E143: 83.39
A144: Provision of a 'BT 66B' for lightning protection | B144: 18 | C144: 01/07/2018 | E144: 86.50
A145: Lay Copper Earthing Strip in an open trench | B145: 19 | C145: 20/12/2011 | D145: 30/09/2017 | E145: 10.00
A146: Lay Copper Earthing Strip in an open trench | B146: 19 | C146: 01/10/2017 | D146: 30/06/2018 | E146: 8.58
A147: Lay Copper Earthing Strip in an open trench | B147: 19 | C147: 01/07/2018 | E147: 8.87
A148: Lay Copper Earthing Strip in Soft or Unsurfaced | B148: 19 | C148: 20/12/2011 | D148: 30/09/2017 | E148: 28.00
A149: Lay Copper Earthing Strip in Soft or Unsurfaced | B149: 19 | C149: 01/10/2017 | D149: 30/06/2018 | E149: 29.92
A150: Lay Copper Earthing Strip in Soft or Unsurfaced | B150: 19 | C150: 01/07/2018 | E150: 31.02
A151: Lay Copper Earthing Strip in Footway | B151: 19 | C151: 20/12/2011 | D151: 30/09/2017 | E151: 32.00
A152: Lay Copper Earthing Strip in Footway | B152: 19 | C152: 01/10/2017 | D152: 30/06/2018 | E152: 42.81
A153: Lay Copper Earthing Strip in Footway | B153: 19 | C153: 01/07/2018 | E153: 44.50
A154: Lay Copper Earthing Strip in Carriageway | B154: 19 | C154: 20/12/2011 | D154: 30/09/2017 | E154: 42.00
A155: Lay Copper Earthing Strip in Carriageway | B155: 19 | C155: 01/10/2017 | D155: 30/06/2018 | E155: 78.65
A156: Lay Copper Earthing Strip in Carriageway | B156: 19 | C156: 01/07/2018 | E156: 81.72
A157: Work undertaken on the British Outer Islands | B157: 20 | C157: 20/12/2011 | D157: 30/09/2017 | E157: 476.00
A158: Work undertaken on the British Outer Islands | B158: 20 | C158: 01/10/2017 | D158: 30/06/2018 | E158: 584.53
A159: Work undertaken on the British Outer Islands | B159: 20 | C159: 01/07/2018 | E159: 606.22
A160: Retention, Refix and Renewal of aerial Cable | C160: 20/12/2011 | D160: 30/09/2017 | E160: 270.00
A161: Retention, Refix and Renewal of aerial Cable | C161: 01/10/2017 | D161: 30/06/2018 | E161: 150.03
A162: Retention, Refix and Renewal of aerial Cable | C162: 01/07/2018 | E162: 155.19
A163: Retention, Refix and Renewal of drop wire | C163: 20/12/2011 | D163: 30/09/2017 | E163: 74.00
A164: Retention, Refix and Renewal of drop wire | C164: 01/10/2017 | D164: 30/06/2018 | E164: 54.49
A165: Retention, Refix and Renewal of drop wire | C165: 01/07/2018 | E165: 56.45
A166: Mobilisation Payment | B166: 21 | C166: 20/12/2011 | D166: 30/09/2017 | E166: 200.00
A167: Mobilisation Payment | B167: 21 | C167: 01/10/2017 | D167: 30/06/2018 | E167: 194.05
A168: Mobilisation Payment | B168: 21 | C168: 01/07/2018 | E168: 201.51
A169: Ferry travel for Scottish islands | C169: 20/12/2011 | E169: As per ticket price
A170: Local authority fees | B170: 22 | C170: 20/12/2011 | E170: As per fees
A171: Non-standard civils work | C171: 20/12/2011 | E171: As per fees
A172: Road Closures (Cable Works) | B172: 23 | C172: 20/12/2011 | E172: As per fees
A173: Overhead network data report for established Physical Infrastructure Access (PIA) CPs | C173: 22/10/2015 | D173: 30/04/2018 | E173: 500.00
A174: Overhead network data report for established Physical Infrastructure Access (PIA) CPs | C174: 01/05/2018 | E174: 0.00
A176: Notes:
A177: 1 The duct infrastructure uplift charge will be applicable from the date on which a reservation is made. The charge will be levied on a one-off basis, per metre of duct. 2 Openreach will publish, and regularly update, a list of exchanges where we have uplifted duct as part of our own NGA deployment. Within those exchange areas we will apply the duct infrastructure uplift charge on all PIA spine duct orders (except for &lsquo;new build&rsquo; duct sections purchased by the Customer). We will not apply the duct infrastructure uplift charge where the facility has been deployed using public funds. 3 A range of accreditation modules is available and modules should be selected depending on the types of work to be undertaken. 4 Order quantities for cable recovery will be in multiples of 100m. 5 Light cables are <=27mm, heavy are >27mm, large cables are defined as Hessian or Lead cables. 6 After an initial duct blockage clearance is made, there may be further blockages within the same duct section. For these further duct blockages, the subsequent duct blockage clearance charge applies. 7 In some circumstances, duct clearance work may be unsuccessful (e.g. due to obstruction or damage caused by other plant) in which case an abortive clearance charge will apply instead of the normal duct clearance charge. 8 Joint box breakthrough charge is per breakthrough. If a Customer lays duct then they can choose to do the breakthrough themselves and pay only the breakthrough administration charge. Where the Customer wishes to extend their duct network into the Openreach network the following rules apply: a) if a Customer purchases new duct of >5m in length then, for every breakthrough of that duct to an Openreach junction box, the breakthrough charge will not apply, b) if a Customer purchases new duct of <= 5m in length, then for every break-though of that duct into an Openreach junction box, the breakthrough charge will apply, c) where the Customer wishes Openreach to extend the Openreach duct into an Openreach junction box, then the breakthrough charge will not apply. For the avoidance of doubt the length of duct will be taken from the inner face of jointing chamber wall to pole or end of Customer duct or inner face of Customer&rsquo;s jointing chamber. 9 Customer changeover charges apply where a request is made to move cable attachments from one pole to another pole. 10 This charge is applicable where an Openreach engineer is required to unlock locked lids on joint boxes. 11 Divisionary works are charged at an hourly rate and are required, for example, where a significant element of the physical infrastructure is to be relocated (e.g. for the building of a new roundabout). 12 Restoration charge is applicable where there has been a disruption to service due to unintended third-party activity (e.g. damage to duct section). 13 A co-op survey charge will apply in situations where Openreach are required to be in attendance during survey activity. 14 The Openreach assist hourly rate will be applicable in addition to the Openreach assist visit charge. Openreach assist may be required, for instance, for work in sensitive areas. 15 Order quantities for pull-through will be in multiples of 100m. This service is provided for pull-through of cables in sensitive areas. 16 Abortive time charges include waiting time associated with a co-op survey. 17 One of three hourly rates apply (i) normal working hours (ii) other times (excluding Sundays and Bank Holidays) (iii) Bank Holidays or Sundays. 18 For further detail on these products, see the Product Description. 19 Charge is per metre. 20 Charge is for work with a value up to and including &pound;2,000 undertaken on the British Outer Islands. Charge is per occasion. 21 The mobilisation rate is a single payment per job to cover exceptional circumstances where expedite delivery is required (e.g. for safety reasons). 22 Local authority fees may be required to cover the cost of, for example, suspension of parking bay fees. 23 Road Closures includes all activities associated with the official closure of highways, including licensing. 24 Also applies to Physical Insfrastructure novations.
D179: British Telecommunications plc
D180: Registered office:
A181: Date: 28 June 2017 | D181: 81 Newgate Street
D182: London EC1A 7AJ
D183: Registered in England and Wales No. 1800000
D184: www.openreach.co.uk

Sheet PIA - Ancillary rentals
A1: Source:
A2: https://www.openreach.co.uk/orpg/home/products/pricing/loadProductPriceDetails.do?data=5U%2BT4J34ZzADdeE3wLse8prmJTmzH7GBw64NLcFpYMdZ6rNZujnCs99NbIKJZPD9hXYmiijxH6wrCQm97GZMyQ%3D%3D
A3: Price list
A6: Product line: | B6: Physical Infrastructure Pricing
A7: First level product: | B7: Physical Infrastructure Products
A8: Second level product: | B8: Ancillary Rentals
A9: Version | B9: N/A
A12: Ancillary Rentals
A14: Separate charges apply for Facility and Customer Apparatus hosting in manholes and joint boxes. The Licence Fee (per annum) is calculated by adding together the relevant Duct and Pole Products with the Ancillary Fees, e.g. Customer Apparatus In-line Splice hosting and distribution joints.
A16: Feature | B16: Note | C16: Operative date | D16: Until | E16: Minimum Licence Period (years) | F16: Charge per annum £ £ Exc VAT | G16: Charge per annum for BDUK related bids £ Exc VAT
A17: Customer Apparatus In-line Splice hosting and distribution joints (per manhole splice) | B17: 1 | C17: 02/08/2012 | D17: 15/09/2013 | E17: 5 | F17: 76.40 | G17: 40.06
A18: Customer Apparatus In-line Splice hosting and distribution joints (per manhole splice) | B18: 1, 4 | C18: 16/09/2013 | D18: 30/04/2018 | E18: 5 | F18: 40.06 | G18: n/a
A19: Customer Apparatus In-line Splice hosting and distribution joints (per manhole splice) | B19: 1, 4, 5 | C19: 01/05/2018 | E19: 5 | F19: 29.22 | G19: n/a
A20: Customer Apparatus In-line Splice hosting and distribution joints (per joint box splice) | B20: 1 | C20: 02/08/2012 | D20: 15/09/2013 | E20: 5 | F20: 53.57 | G20: 31.42
A21: Customer Apparatus In-line Splice hosting and distribution joints (per joint box splice) | B21: 1, 4 | C21: 16/09/2013 | D21: 30/04/2018 | E21: 5 | F21: 31.42 | G21: n/a
A22: Customer Apparatus In-line Splice hosting and distribution joints (per joint box splice) | B22: 1, 4, 6 | C22: 01/05/2018 | E22: 5 | F22: 18.11 | G22: n/a
A23: Customer Apparatus Cable Coil Hosting - small (per manhole) | B23: 1, 2 | C23: 02/08/2012 | D23: 15/09/2013 | E23: 5 | F23: 44.07 | G23: 25.90
A24: Customer Apparatus Cable Coil Hosting - small (per manhole) | B24: 1, 2, 4 | C24: 16/09/2013 | D24: 30/04/2018 | E24: 5 | F24: 25.90 | G24: n/a
A25: Customer Apparatus Cable Coil Hosting - small (per manhole) | B25: 1, 2, 4, 7 | C25: 01/05/2018 | E25: 5 | F25: 14.61 | G25: n/a
A26: Customer Apparatus Cable Coil Hosting - medium (per manhole) | B26: 1, 2 | C26: 02/08/2012 | D26: 15/09/2013 | E26: 5 | F26: 76.40 | G26: 40.06
A27: Customer Apparatus Cable Coil Hosting - medium (per manhole) | B27: 1, 2, 4 | C27: 16/09/2013 | D27: 30/04/2018 | E27: 5 | F27: 40.06 | G27: n/a
A28: Customer Apparatus Cable Coil Hosting - medium (per manhole) | B28: 1, 2, 4, 5 | C28: 01/05/2018 | E28: 5 | F28: 29.22 | G28: n/a
A29: Customer Apparatus Cable Coil Hosting - large (per manhole) | B29: 1, 2 | C29: 02/08/2012 | D29: 15/09/2013 | E29: 5 | F29: 108.74 | G29: 54.23
A30: Customer Apparatus Cable Coil Hosting - large (per manhole) | B30: 1, 2, 4 | C30: 16/09/2013 | D30: 30/04/2018 | E30: 5 | F30: 54.23 | G30: n/a
A31: Customer Apparatus Cable Coil Hosting - large (per manhole) | B31: 1, 2, 4, 8 | C31: 01/05/2018 | E31: 5 | F31: 43.83 | G31: n/a
A32: Customer Apparatus Cable Coil Hosting - small (per joint box) | B32: 1, 2 | C32: 02/08/2012 | D32: 15/09/2013 | E32: 5 | F32: 29.54 | G32: 18.46
A33: Customer Apparatus Cable Coil Hosting - small (per joint box) | B33: 1, 2, 4 | C33: 16/09/2013 | D33: 30/04/2018 | E33: 5 | F33: 18.46 | G33: n/a
A34: Customer Apparatus Cable Coil Hosting - small (per joint box) | B34: 1, 2, 4, 9 | C34: 01/05/2018 | E34: 5 | F34: 9.05 | G34: n/a
A35: Customer Apparatus Cable Coil Hosting - medium (per joint box) | B35: 1, 2 | C35: 02/08/2012 | D35: 15/09/2013 | E35: 5 | F35: 53.57 | G35: 31.42
A36: Customer Apparatus Cable Coil Hosting - medium (per joint box) | B36: 1, 2, 4 | C36: 16/09/2013 | D36: 30/04/2018 | E36: 5 | F36: 31.42 | G36: n/a
A37: Customer Apparatus Cable Coil Hosting - medium (per joint box) | B37: 1, 2, 4, 6 | C37: 01/05/2018 | E37: 5 | F37: 18.11 | G37: n/a
A38: Customer Apparatus Cable Coil Hosting - large (per joint box) | B38: 1, 2 | C38: 02/08/2012 | D38: 15/09/2013 | E38: 5 | F38: 77.60 | G38: 44.38
A39: Customer Apparatus Cable Coil Hosting - large (per joint box) | B39: 1, 2, 4 | C39: 16/09/2013 | D39: 30/04/2018 | E39: 5 | F39: 44.38 | G39: n/a
A40: Customer Apparatus Cable Coil Hosting - large (per joint box) | B40: 1, 2, 4, 10 | C40: 01/05/2018 | E40: 5 | F40: 27.16 | G40: n/a
A41: Facility hosting (per manhole entry) | B41: 1, 3 | C41: 02/08/2012 | D41: 15/09/2013 | E41: 5 | F41: 14.98 | G41: 11.18
A42: Facility hosting (per manhole entry) | B42: 1, 3, 4 | C42: 16/09/2013 | D42: 30/04/2018 | E42: 5 | F42: 11.18 | G42: n/a
A43: Facility hosting (per manhole entry) | B43: 1, 3, 4, 9, 11 | C43: 01/05/2018 | E43: 5 | F43: 8.34 | G43: n/a
A44: Facility hosting (per joint box entry) | B44: 1, 3 | C44: 02/08/2012 | D44: 15/09/2013 | E44: 5 | F44: 7.03 | G44: 5.11
A45: Facility hosting (per joint box entry) | B45: 1, 3, 4 | C45: 16/09/2013 | D45: 30/04/2018 | E45: 5 | F45: 5.11 | G45: n/a
A46: Facility hosting (per joint box entry) | B46: 1, 3, 4, 10, 12 | C46: 01/05/2018 | E46: 5 | F46: 2.01 | G46: n/a
A48: Notes:
A49: 1. Each space in the Access Network in the Customer's Order will be for a minimum length of 100m of spine duct (per exchange area) except where an Order is for an addition to an existing Order already submitted by the Customer for a contiguous extension to an existing Facility. Orders for less than 100m of spine duct will be reviewed and considered by Openreach if the orders are for SLU backhaul NGA delivery. 2. For cable coils housed in a junction box or manhole, a small cable is defined as 0m-2m, medium cable 2m-7m, large cable >7m. 3. A separate charge will apply for each sub-duct entering or exiting from the junction box or manhole. If a single sub-duct passes straight through the junction box or manhole - two charges apply (one for entry and one for exit). 4. From 16/9 /2013, the distinction between BDUK and Non BDUK regional prices was removed and a single price now applies. 5. Openreach amends its process for billing for products where the annual charge is not divisible by twelve. Openreach will flex the monthly charges by a penny up or down, so that over the course of the year the total price charged is no more than the Ofcom charge ceiling. The flexing of the monthly charges is shown below. For the period 1 May 2018 to 31 March 2019:May to August &pound;2.65September to March &pound;2.66 6. Openreach amends its process for billing for products where the annual charge is not divisible by twelve.. Openreach will flex the monthly charges by a penny up or down, so that over the course of the year the total price charged is no more than the Ofcom charge ceiling. The flexing of the monthly charges is shown below. For the period 1 May 2018 to 31 March 2019:May to August &pound;1.64September to March &pound;1.65 7. Openreach amends its process for billing for products where the annual charge is not divisible by twelve.. Openreach will flex the monthly charges by a penny up or down, so that over the course of the year the total price charged is no more than the Ofcom charge ceiling. The flexing of the monthly charges is shown below. For the period 1 May 2018 to 31 March 2019:May to June &pound;1.32July to March &pound;1.33 8. Openreach amends its process for billing for products where the annual charge is not divisible by twelve.. Openreach will flex the monthly charges by a penny up or down, so that over the course of the year the total price charged is no more than the Ofcom charge ceiling. The flexing of the monthly charges is shown below. For the period 1 May 2018 to 31 March 2019:May to October &pound;3.98November to March &pound;3.99 9. Openreach amends its process for billing for products where the annual charge is not divisible by twelve.. Openreach will flex the monthly charges by a penny up or down, so that over the course of the year the total price charged is no more than the Ofcom charge ceiling. The flexing of the monthly charges is shown below. For the period 1 May 2018 to 31 March 2019:May to December &pound;0.82January to March &pound;0.83 10.Openreach amends its process for billing for products where the annual charge is not divisible by twelve.. Openreach will flex the monthly charges by a penny up or down, so that over the course of the year the total price charged is no more than the Ofcom charge ceiling. The flexing of the monthly charges is shown below. For the period 1 May 2018 to 31 March 2019:May &pound;2.46June to March &pound;2.47 11.Openreach amends its process for billing for products where the annual charge is not divisible by twelve.. Openreach will flex the monthly charges by a penny up or down, so that over the course of the year the total price charged is no more than the Ofcom charge ceiling. The flexing of the monthly charges is shown below. For the period 1 May 2018 to 31 March 2019:May to June &pound;0.75July to March &pound;0.76 12.Openreach amends its process for billing for products where the annual charge is not divisible by twelve.. Openreach will flex the monthly charges by a penny up or down, so that over the course of the year the total price charged is no more than the Ofcom charge ceiling. The flexing of the monthly charges is shown below. For the period 1 May 2018 to 31 March 2019:May to December &pound;0.18January to March &pound;0.19 13. For 2018/19 charge per annum applies for First Relevant PIA Year from 1 May 2018 to 31 March 2019
D51: British Telecommunications plc
D52: Registered office:
A53: Date: 17 June 2013 | D53: 81 Newgate Street
D54: London EC1A 7AJ
D55: Registered in England and Wales No. 1800000
D56: www.openreach.co.uk

Sheet EAD costs
A1: Source:
A2: 2017/18 RFS for services SD148 and SD149; and Ofcom calculations on 2017/18 AFI 4 and 2017/18 AFI 12 (A12_SERVICE MARKET and A12_Revenue Analysis) for service SD163.
B4: Services
B5: SD148 | C5: SD149 | D5: SD163 low | E5: SD163 high
B6: EAD LA 100Mbit s Rentals Rest of UK Internal | C6: EAD LA 1Gbit s Rentals Rest of UK Internal | D6: EAD 10G Rentals Rest of UK Internal | E6: EAD 10G Rentals Rest of UK Internal
A7: Annual depreciation of unit FAC for cost component CO487 (Ethernet Electronics Capital) | B7: 305.982 | C7: 284.622 | D7: 795.4464 | E7: 1193.1696

Sheet EAD prices
A1: Source:
A2: https://www.openreach.co.uk/orpg/home/products/pricing/loadProductPriceDetails.do?data=0d0zetWgShsjqKWjcN2Y5WJA8BGGqsBLxL7IgSM4fRpZ6rNZujnCs99NbIKJZPD9hXYmiijxH6wr%0ACQm97GZMyQ%3D%3D
A3: Price list
A6: Product line: | B6: Ethernet services
A7: First level product: | B7: Connectivity Services
A8: Second level product: | B8: Ethernet Access Direct (EAD) including EAD Enable
A9: Version | B9: N/A
A12: Ethernet Access Direct (EAD) including EAD Enable
A14: For terms and conditions applicable to these charges payable to BT, please see the Conditions section of the Connectivity Services Contract.
A17: EAD circuits
A19: Feature | B19: Note | C19: Operative date | D19: Until | E19: Connection (Note 10) £ Exc VAT | F19: Annual Rental (Note 1,2 & 12) £ Exc VAT
A20: (Prices are per circuit - Note 2)
A21: EAD 10 | C21: 14/07/2009 | D21: 18/01/2010 | E21: 1950 | F21: 4,400.00
A22: EAD 10 | C22: 19/01/2010 | D22: 08/04/2010 | E22: 1560 | F22: 3352.64
A23: EAD 10 | C23: 09/04/2010 | D23: 29/09/2010 | E23: 1404 | F23: 3352.64
A24: EAD 10 | C24: 30/09/2010 | D24: 30/04/2013 | E24: 1560 | F24: 3352.64
A25: EAD 10 | C25: 01/05/2013 | D25: 31/03/2014 | E25: 1560 | F25: 3000
A26: EAD 10 | C26: 01/04/2014 | D26: 31/05/2014 | E26: 1560 | F26: 2550
A27: EAD 10 | B27: Note 23 | C27: 01/06/2014 | D27: 30/04/2016 | E27: 2108 | F27: 2550
A28: EAD 10 | B28: Note 23 | C28: 01/05/2016 | D28: 30/06/2017 | E28: 1950 | F28: 1800
A29: EAD 10 | B29: Note 23 | C29: 01/07/2017 | D29: 31/03/2018 | E29: 1940 | F29: 1800
A30: EAD 10 | B30: Note 23 | C30: 01/04/2018 | E30: 1890 | F30: 1698
A31: EAD 100 | C31: 14/07/2009 | D31: 18/01/2010 | E31: 1950 | F31: 4,400.00
A32: EAD 100 | C32: 19/01/2010 | D32: 08/04/2010 | E32: 1950 | F32: 4044.84
A33: EAD 100 | C33: 09/04/2010 | D33: 29/09/2010 | E33: 1755 | F33: 4044.84
A34: EAD 100 | C34: 30/09/2010 | D34: 30/09/2011 | E34: 1950 | F34: 4044.84
A35: EAD 100 | C35: 01/10/2011 | D35: 30/04/2013 | E35: 1950 | F35: 3628.8
A36: EAD 100 | C36: 01/05/2013 | D36: 31/03/2014 | E36: 1950 | F36: 2400
A37: EAD 100 | C37: 01/04/2014 | D37: 31/05/2014 | E37: 1402 | F37: 2400
A38: EAD 100 | B38: Note 23 | C38: 01/06/2014 | D38: 31/03/2016 | E38: 1950 | F38: 2400
A39: EAD 100 | B39: Note 23 | C39: 01/04/2016 | D39: 30/04/2016 | E39: 1950 | F39: 2245
A40: EAD 100 | B40: Note 23 | C40: 01/05/2016 | D40: 30/09/2016 | E40: 1950 | F40: 1800
A41: EAD 100 | B41: Note 23 | C41: 01/10/2016 | D41: 30/06/2017 | E41: 1935 | F41: 1800
A42: EAD 100 | B42: Note 23 | C42: 01/07/2017 | D42: 31/03/2018 | E42: 1925 | F42: 1800
A43: EAD 100 | B43: Note 23 | C43: 01/04/2018 | E43: 1875 | F43: 1698
A44: EAD 1000 | C44: 22/04/2009 | D44: 30/09/2012 | E44: 3995 | F44: 9,500.00
A45: EAD 1000 | C45: 01/10/2012 | D45: 30/04/2013 | E45: 3995 | F45: 7779
A46: EAD 1000 | C46: 01/05/2013 | D46: 31/03/2014 | E46: 3900 | F46: 6741
A47: EAD 1000 | C47: 01/04/2014 | D47: 31/05/2014 | E47: 3352 | F47: 5664
A48: EAD 1000 | B48: Note 23 | C48: 01/06/2014 | D48: 31/03/2015 | E48: 3900 | F48: 5664
A49: EAD 1000 | B49: Note 23 | C49: 01/04/2015 | D49: 31/03/2016 | E49: 2100 | F49: 4200
A50: EAD 1000 | B50: Note 23 | C50: 01/04/2016 | D50: 30/04/2016 | E50: 2100 | F50: 3850
A51: EAD 1000 | B51: Note 23 | C51: 01/05/2016 | D51: 30/09/2016 | E51: 2100 | F51: 3200
A52: EAD 1000 | B52: Note 23 | C52: 01/10/2016 | D52: 30/06/2017 | E52: 2100 | F52: 3198
A53: EAD 1000 | B53: Note 23 | C53: 01/07/2017 | D53: 30/09/2017 | E53: 2090 | F53: 3198
A54: EAD 1000 | B54: Note 23 | C54: 01/10/2017 | D54: 31/03/2018 | E54: 2090 | F54: 2850
A55: EAD 1000 | B55: Note 23 | C55: 01/04/2018 | E55: 1875 | F55: 2460
A56: EAD 1000 (60 month minimum period) | C56: 15/12/2010 | D56: 30/04/2013 | E56: 3995 | F56: 6300
A57: EAD 1000 (60 month minimum period) | C57: 01/05/2013 | D57: 31/03/2014 | E57: 3900 | F57: 6048
A58: EAD 1000 (60 month minimum period) | C58: 01/04/2014 | D58: 31/05/2014 | E58: 3352 | F58: 5625
A59: EAD 1000 (60 month minimum period) | B59: Note 23 | C59: 01/06/2014 | D59: 31/03/2015 | E59: 3900 | F59: 5625
A60: EAD 1000 (60 month minimum period) | B60: Note 23 | C60: 01/04/2015 | D60: 31/03/2016 | E60: 2100 | F60: 4152
A61: EAD 1000 (60 month minimum period) | B61: Note 23 | C61: 01/04/2016 | D61: 30/04/2016 | E61: 2100 | F61: 3850
A62: EAD 1000 (60 month minimum period) | B62: Note 23 | C62: 01/05/2016 | D62: 30/06/2017 | E62: 2100 | F62: 3150
A63: EAD 1000 (60 month minimum period) | B63: Note 23 | C63: 01/07/2017 | D63: 30/09/2017 | E63: 2090 | F63: 3150
A64: EAD 1000 (60 month minimum period) | B64: Note 23 | C64: 01/10/2017 | D64: 31/03/2018 | E64: 2090 | F64: 2808
A65: EAD 1000 (60 month minimum period) | B65: Note 23 | C65: 01/04/2018 | E65: 1875 | F65: 2412
A66: EAD 1000 (84 month minimum period) | C66: 08/07/2013 | D66: 31/03/2014 | E66: 4495 | F66: 5200
A67: EAD 1000 (84 month minimum period) | C67: 01/04/2014 | D67: 31/05/2014 | E67: 3947 | F67: 5200
A68: EAD 1000 (84 month minimum period) | B68: Note 23 | C68: 01/06/2014 | D68: 30/06/2017 | E68: 4495 | F68: 5200
A69: EAD 1000 (84 month minimum period) | B69: Note 23 | C69: 01/07/2017 | D69: 30/09/2017 | E69: 4485 | F69: 5200
A70: EAD 1000 (84 month minimum period) | B70: Note 23 | C70: 01/10/2017 | D70: 31/03/2018 | E70: 4485 | F70: 2850
A71: EAD 1000 (84 month minimum period) | B71: Note 23 | C71: 01/04/2018 | E71: 4485 | F71: 2460
A72: EAD 10 Extended Reach | C72: 19/11/2012 | D72: 31/05/2014 | E72: 1950 | F72: 4593
A73: EAD 10 Extended Reach | B73: Note 23 | C73: 01/06/2014 | D73: 30/04/2016 | E73: 2498 | F73: 4593
A74: EAD 10 Extended Reach | B74: Note 23 | C74: 01/05/2016 | D74: 30/06/2017 | E74: 2440 | F74: 1800
A75: EAD 10 Extended Reach | B75: Note 23 | C75: 01/07/2017 | D75: 31/03/2018 | E75: 2430 | F75: 1800
A76: EAD 10 Extended Reach | B76: Note 23 | C76: 01/04/2018 | E76: 1990 | F76: 1698
A77: EAD 100 Extended Reach | C77: 19/11/2012 | D77: 31/03/2014 | E77: 2440 | F77: 4971
A78: EAD 100 Extended Reach | C78: 01/04/2014 | D78: 31/05/2014 | E78: 1892 | F78: 4971
A79: EAD 100 Extended Reach | B79: Note 23 | C79: 01/06/2014 | D79: 30/04/2016 | E79: 2440 | F79: 4971
A80: EAD 100 Extended Reach | B80: Note 23 | C80: 01/05/2016 | D80: 30/09/2016 | E80: 2440 | F80: 1800
A81: EAD 100 Extended Reach | B81: Note 23 | C81: 01/10/2016 | D81: 30/06/2017 | E81: 2425 | F81: 1800
A82: EAD 100 Extended Reach | B82: Note 23 | C82: 01/07/2017 | D82: 31/03/2018 | E82: 2415 | F82: 1800
A83: EAD 100 Extended Reach | B83: Note 23 | C83: 01/04/2018 | E83: 1975 | F83: 1698
A84: EAD 1000 Extended Reach | C84: 22/04/2009 | D84: 30/09/2012 | E84: 5000 | F84: 13000
A85: EAD 1000 Extended Reach | C85: 01/10/2012 | D85: 30/04/2013 | E85: 5000 | F85: 9819
A86: EAD 1000 Extended Reach | C86: 01/05/2013 | D86: 31/03/2014 | E86: 4000 | F86: 8400
A87: EAD 1000 Extended Reach | C87: 01/04/2014 | D87: 31/05/2014 | E87: 3452 | F87: 7998
A88: EAD 1000 Extended Reach | B88: Note 23 | C88: 01/06/2014 | D88: 31/03/2015 | E88: 4000 | F88: 7998
A89: EAD 1000 Extended Reach | B89: Note 23 | C89: 01/04/2015 | D89: 30/04/2016 | E89: 2550 | F89: 6498
A90: EAD 1000 Extended Reach | B90: Note 23 | C90: 01/05/2016 | D90: 30/09/2016 | E90: 2550 | F90: 3200
A91: EAD 1000 Extended Reach | B91: Note 23 | C91: 01/10/2016 | D91: 30/06/2017 | E91: 2550 | F91: 3198
A92: EAD 1000 Extended Reach | B92: Note 23 | C92: 01/07/2017 | D92: 30/09/2017 | E92: 2540 | F92: 3198
A93: EAD 1000 Extended Reach | B93: Note 23 | C93: 01/10/2017 | D93: 31/03/2018 | E93: 2540 | F93: 2850
A94: EAD 1000 Extended Reach | B94: Note 23 | C94: 01/04/2018 | E94: 1975 | F94: 2460
A95: EAD 1000 Extended Reach (60 month minimum period) | C95: 15/12/2010 | D95: 30/04/2013 | E95: 5000 | F95: 8621.05
A96: EAD 1000 Extended Reach (60 month minimum period) | C96: 01/05/2013 | D96: 31/03/2014 | E96: 4000 | F96: 7998
A97: EAD 1000 Extended Reach (60 month minimum period) | C97: 01/04/2014 | D97: 31/05/2014 | E97: 3452 | F97: 7800
A98: EAD 1000 Extended Reach (60 month minimum period) | B98: Note 23 | C98: 01/06/2014 | D98: 31/03/2015 | E98: 4000 | F98: 7800
A99: EAD 1000 Extended Reach (60 month minimum period) | B99: Note 23 | C99: 01/04/2015 | D99: 30/04/2016 | E99: 2550 | F99: 6450
A100: EAD 1000 Extended Reach (60 month minimum period) | B100: Note 23 | C100: 01/05/2016 | D100: 30/06/2017 | E100: 2550 | F100: 3150
A101: EAD 1000 Extended Reach (60 month minimum period) | B101: Note 23 | C101: 01/07/2017 | D101: 30/09/2017 | E101: 2540 | F101: 3150
A102: EAD 1000 Extended Reach (60 month minimum period) | B102: Note 23 | C102: 01/10/2017 | D102: 31/03/2018 | E102: 2540 | F102: 2808
A103: EAD 1000 Extended Reach (60 month minimum period) | B103: Note 23 | C103: 01/04/2018 | E103: 1975 | F103: 2412
A104: EAD 1000 Extended Reach (84 month minimum period) | C104: 08/07/2013 | D104: 31/03/2014 | E104: 5500 | F104: 7521
A105: EAD 1000 Extended Reach (84 month minimum period) | C105: 01/04/2014 | D105: 31/05/2014 | E105: 4952 | F105: 7521
A106: EAD 1000 Extended Reach (84 month minimum period) | B106: Note 23 | C106: 01/06/2014 | D106: 30/06/2017 | E106: 5500 | F106: 7521
A107: EAD 1000 Extended Reach (84 month minimum period) | B107: Note 23 | C107: 01/07/2017 | D107: 30/09/2017 | E107: 5490 | F107: 7521
A108: EAD 1000 Extended Reach (84 month minimum period) | B108: Note 23 | C108: 01/10/2017 | D108: 31/03/2018 | E108: 5490 | F108: 2850
A109: EAD 1000 Extended Reach (84 month minimum period) | B109: Note 23 | C109: 01/04/2018 | E109: 5490 | F109: 2460
A110: EAD 10000 | B110: Note 23 | C110: 21/09/2015 | D110: 30/06/2017 | E110: 6000 | F110: 10500
A111: EAD 10000 | B111: Note 23 | C111: 01/07/2017 | D111: 02/04/2018 | E111: 5990 | F111: 10500
A112: EAD 10000 | B112: Note 23 | C112: 03/04/2018 | E112: 5590 | F112: 4980
A113: EAD 10000 (60 month minimum period) | B113: Note 23 | C113: 21/09/2015 | D113: 30/06/2017 | E113: 6000 | F113: 8400
A114: EAD 10000 (60 month minimum period) | B114: Note 23 | C114: 01/07/2017 | D114: 02/04/2018 | E114: 5990 | F114: 8400
A115: EAD 10000 (60 month minimum period) | B115: Note 23 | C115: 03/04/2018 | E115: 4090 | F115: 4380
A118: EAD Modify - Upgrade Charges (see note 21)
A120: Feature | B120: Note | C120: Operative date | D120: Until | E120: Connection Charge Per Circuit £ Exc VAT
A121: EAD Access 10 to 100 | C121: 23/09/2010 | E121: 45
A122: EAD Access 10 to 1000 * | C122: 23/09/2010 | D122: 30/03/2011 | E122: 2255
A123: EAD Access 10 to 1000 or 1000 (60 month minimum period) * | C123: 31/03/2011 | D123: 31/03/2015 | E123: 2255
A124: EAD Access 10 to 1000 or 1000 (60 month minimum period) * | C124: 01/04/2015 | E124: 1260
A125: EAD Access 10 to 1000 (84 month minimum period) * | C125: 08/07/2013 | E125: 2755
A126: EAD Access 100 to 1000 * | C126: 23/09/2010 | D126: 30/03/2011 | E126: 2255
A127: EAD Access 100 to 1000 or 1000 (60 month minimum period) * | C127: 31/03/2011 | D127: 31/03/2015 | E127: 2255
A128: EAD Access 100 to 1000 or 1000 (60 month minimum period) * | C128: 01/04/2015 | E128: 1260
A129: EAD Access 100 to 1000 (84 month minimum period) * | C129: 08/07/2013 | E129: 2755
A130: EAD Access 1000 to 1000 (60 month minimum period) | B130: Note 14 | C130: 31/03/2011 | E130: 45
A131: EAD Access 1000 (12 months or 60 months minimum period) to 1000 (84 month minimum period) | C131: 08/07/2013 | E131: 545
A132: EAD 10 Extended Reach to 100 Extended Reach | C132: 01/03/2013 | E132: 45
A133: EAD 10 Extended Reach to 1000 Extended Reach or 1000 Extended Reach (60 month minimum period) * | C133: 01/03/2013 | D133: 31/03/2015 | E133: 3100
A134: EAD 10 Extended Reach to 1000 Extended Reach or 1000 Extended Reach (60 month minimum period) * | C134: 01/04/2015 | E134: 1560
A135: EAD 10 Extended Reach to EAD 1000 Extended Reach (84 month minimum period) * | C135: 08/07/2013 | E135: 3600
A136: EAD 100 Extended Reach to 1000 Extended Reach or 1000 Extended Reach (60 month minimum period) * | C136: 01/03/2013 | D136: 31/03/2015 | E136: 3100
A137: EAD 100 Extended Reach to 1000 Extended Reach or 1000 Extended Reach (60 month minimum period) * | C137: 01/04/2015 | E137: 1560
A138: EAD 100 Extended Reach to EAD 1000 Extended Reach (84 month minimum period) | C138: 08/07/2013 | E138: 3600
A139: EAD 1000 Extended Reach (12 month or 60 month min period) to EAD 1000 Extended Reach (84 month minimum period) * | C139: 08/07/2013 | E139: 545
A140: EAD Local Access 10 LA to 100 LA | C140: 23/09/2010 | E140: 45
A141: EAD Local Access 10 LA to 1000 LA * | C141: 23/09/2010 | D141: 30/03/2011 | E141: 760
A142: EAD Local Access 10 LA to 1000 LA or 1000 LA (60 month minimum period) * | C142: 31/03/2011 | E142: 760
A143: EAD Local Access 10 LA to EAD 1000 LA (84 month minimum period) * | C143: 08/07/2013 | E143: 1260
A144: EAD Local Access 100 LA to 1000 LA * | C144: 23/09/2010 | D144: 30/03/2011 | E144: 760
A145: EAD Local Access 100 LA to 1000 LA or 1000 LA (60 month minimum period) * | C145: 31/03/2011 | E145: 760
A146: EAD Local Access 100 LA to EAD 1000 LA (84 month minimum period) * | C146: 08/07/2013 | E146: 1260
A147: EAD Local Access 1000 LA to 1000 LA (60 month minimum period) | B147: Note 15 | C147: 31/03/2011 | E147: 45
A148: EAD Local Access 1000 LA (12 months or 60 months min period) to EAD 1000 LA (84 month minimum period) | C148: 08/07/2013 | E148: 545
A150: Note: * Price includes a &pound;210 separate charge for engineer visit per circuit.
A153: EAD SyncE Modify - Upgrade Charges (see notes 21, 24 & 25)
A155: Feature | B155: Note | C155: Operative date | D155: Until | E155: Connection Charge Per Circuit £ Exc VAT
A156: EAD 10/100 to EAD 100 SyncE | C156: 31/03/2014 | E156: 3000
A157: EAD 10/100 to EAD 1000 SyncE (12 or 60 month minimum period) * | C157: 31/03/2014 | D157: 31/03/2015 | E157: 3000
A158: EAD 10/100 to EAD 1000 SyncE (12 or 60 month minimum period) * | C158: 01/04/2015 | E158: 2010
A159: EAD 10/100 to EAD 1000 SyncE (84 month minimum period) * | C159: 31/03/2014 | E159: 3500
A160: EAD 10LA/100LA to 1000 LA SyncE (84 month minimum period) * | C160: 31/03/2014 | E160: 2750
A161: EAD 10LA/100LA to 1000 LA SyncE (12 or 60 month minimum period) * | C161: 31/03/2014 | E161: 1750
A162: EAD 10LA/100LA to 1000 LA SyncE (84 month minimum period) * | C162: 31/03/2014 | E162: 2250
A163: EAD 10ER/100ER to EAD 100ER SyncE | C163: 31/03/2014 | E163: 3100
A164: EAD 10ER/100ER to 1000 ER SyncE (12 or 60 month minimum period) * | C164: 31/03/2014 | D164: 31/03/2015 | E164: 3100
A165: EAD 10ER/100ER to 1000 ER SyncE (12 or 60 month minimum period) * | C165: 01/04/2015 | E165: 2310
A166: EAD 10ER/100ER to 1000 ER SyncE (84 month minimum period) * | C166: 31/03/2014 | E166: 3600
A167: EAD 1000 (12 or 60 month minimum period) to EAD 1000 SyncE (12 or 60 month minimum period) | C167: 31/03/2014 | E167: 3000
A168: EAD 1000 (84 month minimum period) to EAD 1000 SyncE (84 month minimum period) | C168: 31/03/2014 | E168: 3000
A169: EAD 1000 (12 or 60 month minimum period) to EAD 1000 SyncE (84 month minimum period) | C169: 31/03/2014 | E169: 3500
A170: EAD 1000 ER (12 or 60 month minimum period) to EAD 1000 ER SyncE (12 or 60 month minimum period) * | C170: 31/03/2014 | E170: 3000
A171: EAD 1000 ER (84 month minimum period) to EAD 1000 ER SyncE (84 month minimum period) * | C171: 31/03/2014 | E171: 3000
A172: EAD 1000 ER (12 or 60 month minimum period) to EAD 1000 ER SyncE (84 month minimum period) * | C172: 31/03/2014 | E172: 3500
A173: EAD 1000LA (12 or 60 month minimum period) to 1000 LA SyncE (12 or 60 month minimum period) | C173: 31/03/2014 | E173: 3000
A174: EAD 1000LA (84 month minimum period) to 1000 LA SyncE (84 month minimum period) | C174: 31/03/2014 | E174: 3000
A175: EAD 1000LA (12 or 60 month minimum period) to 1000 LA SyncE (84 month minimum period) | C175: 31/03/2014 | E175: 3500
A176: EAD 1000 SyncE to EAD 1000 SyncE (60 month minimum period) | B176: Note 14 | C176: 31/03/2014 | E176: 45
A177: EAD 1000 SyncE (12 months or 60 months minimum period) to EAD 1000 SyncE (84 month minimum period) | C177: 31/03/2014 | E177: 545
A178: EAD 1000 ER SyncE (12 month minimum period) to EAD 1000 ER SyncE (60 month minimum period) * | C178: 31/03/2014 | E178: 45
A179: EAD 1000 ER SyncE (12 month or 60 month minimum period) to EAD 1000 ER SyncE (84 month minimum period) * | C179: 31/03/2014 | E179: 545
A180: EAD 1000 LA SyncE to EAD 1000 LA SyncE (60 month minimum period) | B180: Note 15 | C180: 31/03/2014 | E180: 45
A181: EAD 1000 LA SyncE (12 months or 60 months min period) to EAD 1000 LA SyncE (84 month minimum period) | C181: 31/03/2014 | E181: 545
A184: WES/WEES/BES to EAD Transfer Migration Charges
A186: Feature | C186: Operative date | D186: Until | E186: Connection charge per circuit £ Exc VAT
A187: From | B187: To
A188: WES/WEES 10 Unmanaged | B188: EAD 10 | C188: 16/05/2013 | D188: 31/03/2017 | E188: 1950
A189: WES/WEES 10 Unmanaged | B189: EAD 10 | C189: 01/04/2017 | D189: 30/06/2017 | E189: 1286.5
A190: WES/WEES 10 Unmanaged | B190: EAD 10 | C190: 01/07/2017 | D190: 31/03/2018 | E190: 1284
A191: WES/WEES 10 Unmanaged | B191: EAD 10 | C191: 01/04/2018 | E191: 1234
A192: WES/WEES 10 Managed | B192: EAD 10 | C192: 16/05/2013 | D192: 31/03/2017 | E192: 1950
A193: WES/WEES 10 Managed | B193: EAD 10 | C193: 01/04/2017 | D193: 30/06/2017 | E193: 1286.5
A194: WES/WEES 10 Managed | B194: EAD 10 | C194: 01/07/2017 | D194: 31/03/2018 | E194: 1284
A195: WES/WEES 10 Managed | B195: EAD 10 | C195: 01/04/2018 | E195: 1234
A196: WES/WEES 10 Unmanaged | B196: EAD 100 | C196: 10/04/2012 | D196: 31/03/2017 | E196: 1463
A197: WES/WEES 10 Unmanaged | B197: EAD 100 | C197: 01/04/2017 | D197: 30/06/2017 | E197: 1271.5
A198: WES/WEES 10 Unmanaged | B198: EAD 100 | C198: 01/07/2017 | D198: 31/03/2018 | E198: 1269
A199: WES/WEES 10 Unmanaged | B199: EAD 100 | C199: 01/04/2018 | E199: 1219
A200: WES/WEES 10 Unmanaged | B200: EAD 1000 (standard or 60 month minimum period) | C200: 10/04/2012 | D200: 31/03/2017 | E200: 1998
A201: WES/WEES 10 Unmanaged | B201: EAD 1000 (standard or 60 month minimum period) | C201: 01/04/2017 | D201: 30/06/2017 | E201: 1436.5
A202: WES/WEES 10 Unmanaged | B202: EAD 1000 (standard or 60 month minimum period) | C202: 01/07/2017 | D202: 31/03/2018 | E202: 1434
A203: WES/WEES 10 Unmanaged | B203: EAD 1000 (standard or 60 month minimum period) | C203: 01/04/2018 | E203: 1219
A204: WES/WEES 10 Unmanaged | B204: EAD 1000 (84 month minimum period) | C204: 08/07/2013 | E204: 2498
A205: WES/WEES 10 Managed | B205: EAD 100 | C205: 10/04/2012 | D205: 31/03/2017 | E205: 1463
A206: WES/WEES 10 Managed | B206: EAD 100 | C206: 01/04/2017 | D206: 30/06/2017 | E206: 1271.5
A207: WES/WEES 10 Managed | B207: EAD 100 | C207: 01/07/2017 | D207: 31/03/2018 | E207: 1269
A208: WES/WEES 10 Managed | B208: EAD 100 | C208: 01/04/2018 | E208: 1219
A209: WES/WEES 10 Managed | B209: EAD 1000 (standard or 60 month minimum period) | C209: 10/04/2012 | D209: 31/03/2017 | E209: 1998
A210: WES/WEES 10 Managed | B210: EAD 1000 (standard or 60 month minimum period) | C210: 01/04/2017 | D210: 30/06/2017 | E210: 1436.5
A211: WES/WEES 10 Managed | B211: EAD 1000 (standard or 60 month minimum period) | C211: 01/07/2017 | D211: 31/03/2018 | E211: 1434
A212: WES/WEES 10 Managed | B212: EAD 1000 (standard or 60 month minimum period) | C212: 01/04/2018 | E212: 1219
A213: WES/WEES 10 Managed | B213: EAD 1000 (84 month minimum period) | C213: 08/07/2013 | E213: 2498
A214: WES/WEES 10 LA | B214: EAD 100 LA | C214: 10/04/2012 | D214: 31/03/2017 | E214: 1463
A215: WES/WEES 10 LA | B215: EAD 100 LA | C215: 01/04/2017 | D215: 30/06/2017 | E215: 1221.5
A216: WES/WEES 10 LA | B216: EAD 100 LA | C216: 01/07/2017 | E216: 1219
A217: WES/WEES 10 LA | B217: EAD 1000 LA (standard or 60 month minimum period) | C217: 10/04/2012 | D217: 31/03/2017 | E217: 1500
A218: WES/WEES 10 LA | B218: EAD 1000 LA (standard or 60 month minimum period) | C218: 01/04/2017 | D218: 30/06/2017 | E218: 1386.5
... 654 more rows
